Cogmind - Beta 15 @@@ ROGUE MODE // 2025.08.23 @ 19:05:59 Player: Anting Result: Destroyed by G-73 Enforcer with Heavy Laser Performance ------------- Evolutions (8) 4000 Regions Visited (29) 5800 Robots Destroyed (451) 2255 Value Destroyed (23429) 23429 Prototype IDs (125) 2500 Alien Tech Used (4) 800 Bonus (15723) 15723 TOTAL SCORE: 54507 Bonus ------- High Alert Combat Kills 3471 Follower Combat Kills 2387 Network Hubs Disabled 400 Met Data Miner 300 Met Warlord at Base 500 MAIN.C Attacked Warlord 500 Warlord Defense Kills 132 Built Enhanced Grunts 300 Met R17 at Cetus 500 Found Hidden Lab 3000 Used Core Reset Matrix 3000 Met R17 at Research 2000 Scanned by Researcher 500 Friendly Fire -1267 Cogmind --------- Core Integrity 0/1450 Matter 0/300 Energy 63/100 System Corruption 59% Temperature Cool (9) Movement Core (100) Ox1 Location -2/Protoforge Parts ------- > --- POWER (4) -------- (None) > --- PROPULSION (6) --- (None) > --- UTILITY (11) ----- Concept Antigrav Storage Unit Concept Dimensional Manipulator (fused) Experimental Targeting Computer Experimental Core Analyzer Concept Navigation Harness > --- WEAPON (2) ------- Concept Blasthammer > --- INVENTORY (25) --- Experimental Antimatter Reactor Hybrid Graviton Reactor Experimental Cooling System Advanced Coolant Injector Concept Thermoelectric Network Concept Thermoelectric Network Improved Energy Well (244) Experimental Matter Compressor (0) Concept NT7 Matterbank (0) Concept Dimensional Manipulator Concept Networked Targeting System Concept Core Analysis Suite Concept Cloak Mesh Graphene Brace System Mapper Concept Network Penetrator Concept Network Penetrator Crosscalibrator Transdimensional Reconstructor Cooled Directed Potential Cannon Peak State ------------ > --- POWER ------------ Micro Antimatter Reactor Micro Antimatter Reactor Quantum Reactor > --- PROPULSION ------- Experimental Antigrav System Experimental Antigrav System Gravjet Array Concept Combat Aerolev Unit Concept Gyrokinetic System > --- UTILITY ---------- Experimental Cooling System Concept Antigrav Storage Unit Experimental Active Sensor Suite Experimental Targeting Computer Concept Weapon Articulator Experimental Core Analyzer Experimental Transmission Jammer Experimental Reaction Control System Centrium Medium Armor Plating Graphene Brace > --- WEAPON ----------- Enhanced Nova Cannon Enhanced Nova Cannon > --- INVENTORY -------- Quantum Reactor Gravjet Array Gravjet Array Concept Combat Aerolev Unit Experimental Cooling System Experimental Cooling System Advanced Coolant Injector Improved Energy Well Concept Chromion Battery Experimental Matter Compressor Concept NT7 Matterbank Experimental Weapon Cycler System Mapper Concept Network Penetrator Concept Network Penetrator Quantum Router Crosscalibrator Vortex Driver Compact Mass Driver Compact Mass Driver Z-bomb Delivery System [Rating: 231] Favorites ----------- Power Quantum Reactor Engine Improved Deuterium Engine Power Core Neutrino Core Reactor Quantum Reactor Propulsion Light Treads Treads Light Treads Leg Aluminum Leg Hover Unit Gravjet Array Utility High-capacity Storage Unit Device Experimental Cooling System Storage High-capacity Storage Unit Processor Advanced Terrain Scan Processor Hackware Advanced Hacking Suite Protection Centrium Medium Armor Plating Weapon Enhanced Autogun Energy Gun Medium Laser Energy Cannon Enhanced Nova Cannon Ballistic Gun Enhanced Autogun Ballistic Cannon Compact Mass Driver Launcher Tesla Bomb Launcher Impact Weapon Concept Blasthammer Build | -11 -10 -10 -9 -9 -9 -8 -8 -7 -7 -7 -7 -6 -6 -6 -6 -6 -6 -5 -5 -5 -5 -4 -4 -3 -3 -3 -2 -2 -2 ------- Run | Yrd Mat Min Mat Min Exi Min Mat Fac Low Low Dat Pro Fac Ext Cet Arc Hub Fac Upp Upp War Pro Fac Res Arm Lab Res Tes Frg Slots Evolved 16 | . . . 2 . . . 2 2 . . . . 2 . . . . 2 . . . . 2 2 . . 2 . . Power 3 | . . . . . . . . . . . . . 1 . . . . . . . . . 1 . . . 1 . . Propulsion 4 | . . . 1 . . . 1 . . . . . . . . . . . . . . . . 2 . . . . . Utility 9 | . . . 1 . . . 1 2 . . . . 1 . . . . 2 . . . . 1 . . . 1 . . Weapon . | . . . . . . . . . . . . . . . . . . . . . . . . . . . . . . Parts Attached 319 | 7 5 . 24 . . 1 14 14 15 5 . . 8 12 7 4 5 11 4 2 8 13 34 19 30 5 8 14 50 Power 47 | 1 1 . 2 . . . 2 2 . . . . 1 3 2 . 2 1 . . . 1 5 5 6 2 2 2 7 Engine 11 | 1 1 . 2 . . . 2 2 . . . . 1 2 . . . . . . . . . . . . . . . Core 4 | . . . . . . . . . . . . . . . 1 . . 1 . . . . 2 . . . . . . Reactor 32 | . . . . . . . . . . . . . . 1 1 . 2 . . . . 1 3 5 6 2 2 2 7 Propulsion 78 | 2 1 . 12 . . . 4 3 5 4 . . 3 7 1 2 . 4 1 . 1 . 3 3 4 . 1 . 17 Treads 52 | . . . 8 . . . 4 3 5 4 . . 3 7 1 2 . 4 1 . 1 . . 3 4 . 1 . 1 Leg 18 | 2 1 . 4 . . . . . . . . . . . . . . . . . . . 3 . . . . . 8 Wheel . | . . . . . . . . . . . . . . . . . . . . . . . . . . . . . . Hover 8 | . . . . . . . . . . . . . . . . . . . . . . . . . . . . . 8 Flight . | . . . . . . . . . . . . . . . . . . . . . . . . . . . . . . Utility 130 | 2 1 . 3 . . 1 5 5 9 . . . 2 1 4 2 . 5 1 1 6 5 22 7 12 3 3 9 21 Device 67 | 1 . . 1 . . . 4 1 6 . . . . . . 2 . 3 1 . 2 1 13 6 5 2 1 6 12 Storage 15 | 1 1 . . . . . . 1 . . . . . . . . . 1 . . 1 2 5 . 1 . . 1 1 Processor 16 | . . . . . . . . 3 . . . . 1 . . . . 1 . 1 2 . 1 . 1 . 2 1 3 Hackware 2 | . . . . . . . . . . . . . . . . . . . . . . . 1 . . . . 1 . Protection 30 | . . . 2 . . 1 1 . 3 . . . 1 1 4 . . . . . 1 2 2 1 5 1 . . 5 Artifact . | . . . . . . . . . . . . . . . . . . . . . . . . . . . . . . Weapon 64 | 2 2 . 7 . . . 3 4 1 1 . . 2 1 . . 3 1 2 1 1 7 4 4 8 . 2 3 5 Energy Gun 3 | 1 1 . . . . . . . . . . . . . . . . . . . . . . 1 . . . . . Energy Cannon 31 | . . . 1 . . . 1 1 . 1 . . 2 1 . . 3 1 1 1 1 3 1 2 4 . 2 2 3 Ballistic Gun 12 | 1 . . 5 . . . 2 3 1 . . . . . . . . . . . . . . . . . . . . Ballistic Cannon 2 | . . . . . . . . . . . . . . . . . . . . . . . . . 1 . . . 1 Launcher 14 | . 1 . 1 . . . . . . . . . . . . . . . 1 . . 3 3 1 3 . . 1 . Special Weapon . | . . . . . . . . . . . . . . . . . . . . . . . . . . . . . . Impact Weapon 2 | . . . . . . . . . . . . . . . . . . . . . . 1 . . . . . . 1 Slashing Weapon . | . . . . . . . . . . . . . . . . . . . . . . . . . . . . . . Piercing Weapon . | . . . . . . . . . . . . . . . . . . . . . . . . . . . . . . Special Melee Weapon . | . . . . . . . . . . . . . . . . . . . . . . . . . . . . . . Unidentified Prototypes 50 | . . . 2 . . . 1 3 1 . . . . . 1 1 . . . . 4 4 3 4 8 4 2 6 6 Corrupted Parts 16 | . . . . . . . . . . . . . . . . 2 2 . . . . 2 2 1 3 3 . . 1 System Corruption 116 | . . . . . . . . . . . . . . . . 11 9 . . . . 16 18 2 21 29 . . 10 Parts Lost 107 | . . . 1 . . 2 1 3 1 5 . . 4 3 1 . . 2 . . 4 12 16 3 16 . 1 2 30 Power 19 | . . . . . . . . . . . . . . 1 . . . 1 . . . 2 4 . 5 . . 2 4 Propulsion 32 | . . . . . . 1 . 2 1 3 . . 3 1 . . . . . . . 3 2 . 3 . . . 13 Utility 42 | . . . 1 . . 1 1 1 . 1 . . . 1 1 . . 1 . . 3 5 6 1 8 . 1 . 10 Weapon 14 | . . . . . . . . . . 1 . . 1 . . . . . . . 1 2 4 2 . . . . 3 Highest Loss Streak 7 | . . . 1 . . 2 1 2 1 3 . . 4 2 1 . . 2 . . 3 6 5 2 3 . 1 2 7 To Critical Strikes 2 | . . . . . . . . . . . . . 1 . . . . . . . . . . . . . . . 1 Average Backups 19 | 3 14 18 19 19 19 18 19 19 19 19 20 20 18 19 18 17 17 17 17 17 17 13 20 22 20 19 21 22 21 Power . | . . . . . . . . . . . . . . . 2 1 3 2 2 2 2 1 . 1 1 . 2 1 1 Propulsion 3 | 1 2 3 7 8 8 7 8 7 6 5 5 5 3 2 2 1 2 2 2 2 2 1 1 1 1 . . . 1 Utility 8 | . 2 3 3 3 3 3 3 5 6 8 10 10 9 11 10 10 9 7 7 7 7 6 10 13 11 9 9 9 11 Weapon 6 | . 8 12 8 8 8 8 7 7 6 5 5 5 4 4 3 3 3 4 5 6 5 4 7 6 6 8 8 8 6 Tool/Special . | . . . . . . . . . . . . . . . . . . . . . . . . . . . . . . Unused Backups 67 | . . . 8 . . . 1 1 3 . . . . 2 3 . 1 . 2 . 3 . 4 8 5 1 1 3 21 Power 8 | . . . . . . . . . . . . . . . . . . . . . . . . 1 . 1 1 2 3 Propulsion 4 | . . . 1 . . . . . . . . . . 1 1 . . . . . . . . . . . . . 1 Utility 30 | . . . 1 . . . . . 2 . . . . . 2 . . . 1 . 2 . 2 3 2 . . 1 14 Weapon 24 | . . . 6 . . . 1 1 1 . . . . 1 . . 1 . 1 . 1 . 2 4 3 . . . 2 Tool/Special 1 | . . . . . . . . . . . . . . . . . . . . . . . . . . . . . 1 Average Slot Usage (%) 91 | . 99 100 99 100 100 99 99 97 100 99 100 100 92 99 99 98 100 99 98 94 93 72 73 80 82 79 82 85 76 Engine 4 | . 14 14 11 11 11 11 9 7 7 7 7 7 6 10 1 . . . . . . . . . . . . . . Reactor 6 | . . . . . . . . . . . . . . 1 7 13 13 5 5 5 7 8 6 9 13 14 16 16 12 Treads 20 | . . . 25 33 33 32 36 29 30 29 30 30 25 26 26 25 26 23 21 17 17 14 6 11 15 14 14 17 4 Leg 2 | . 28 28 6 . . . . . . . . . . . . . . . . . . . 3 2 . . . . 5 Device 16 | . 13 14 13 11 11 11 17 16 14 14 7 15 13 12 13 12 13 19 23 23 22 8 17 14 17 14 22 22 19 Storage 8 | . 14 14 11 11 11 11 9 7 7 7 7 7 6 6 6 6 6 5 5 5 5 11 9 9 10 18 10 4 4 Processor 10 | . . . . . . . . 15 16 15 15 15 19 20 20 20 20 20 17 17 17 11 14 9 6 4 4 8 10 Protection 5 | . . . 8 11 11 10 9 3 5 7 15 7 6 6 6 6 6 5 5 5 4 4 . 5 3 . 3 3 4 Energy Cannon 7 | . . . 7 11 11 11 8 . . . . 6 9 13 13 13 13 11 10 11 11 7 4 5 7 9 7 7 6 Ballistic Gun 4 | . 14 14 13 11 11 11 9 14 15 13 7 7 2 . . . . . . . . . . . . . . . . Peak Build Rating 231 | 7 10 10 20 18 18 18 32 41 50 56 49 53 52 74 87 93 88 104 104 108 118 115 140 167 170 175 198 205 231 Average Rating 93 | 4 8 10 17 18 18 17 25 36 41 46 49 45 46 64 83 86 86 98 101 104 109 97 117 151 159 158 192 199 194 On Entrance 75 | . 7 10 10 18 18 18 18 29 40 44 49 49 46 50 74 87 88 83 100 104 104 99 96 110 167 168 175 196 200 Naked Turns . | . . . . . . . . . . . . . . . . . . . . . . . . . . . . . . Heaviest Build 291 | 14 50 50 59 59 59 59 62 63 70 89 89 68 80 88 100 101 101 114 114 104 124 127 162 163 291 216 233 231 225 Greatest Support 180 | 20 20 20 60 60 60 60 80 80 88 91 85 85 85 116 116 138 116 120 130 130 130 160 160 180 180 147 175 175 180 Greatest Overweight (x) 4 | . 2 2 2 . . . . . . 1 1 . 1 . . 1 . . . . . . 1 1 1 1 1 1 4 Average Overweight (x) . | . 1 2 . . . . . . . . 1 . . . . . . . . . . . . . . 1 1 1 . Largest Inventory Capacity 25 | 8 20 20 20 20 20 20 20 20 20 20 20 20 20 20 20 20 20 20 20 20 20 20 25 25 25 25 25 25 25 Average Capacity 21 | 6 16 20 20 20 20 20 20 20 20 20 20 20 20 20 20 20 20 20 20 20 20 20 24 25 25 25 25 25 25 Most Carried 25 | 5 18 18 20 19 19 20 20 20 20 20 20 20 20 20 20 20 20 20 20 20 20 20 25 25 25 25 25 25 25 Average Carried 20 | 3 14 18 19 19 19 18 19 19 19 19 20 20 18 19 19 18 19 19 19 19 19 15 21 24 22 20 24 24 23 Final Capacity 25 | 8 20 20 20 20 20 20 20 20 20 20 20 20 20 20 20 20 20 20 20 20 20 20 25 25 25 25 25 25 25 Final Carried 25 | 5 18 18 19 19 19 20 20 20 20 20 20 20 18 19 20 20 20 18 20 20 19 16 22 25 24 25 25 22 22 Class Distribution -------------------- 59% | Scavenger-Mutant 13% | Mutant 11% | Scavenger-Skirmisher 11% | Generator-Mutant Dominant Class ---------------- Mutant | -10/Materials Mutant | -10/Mines Scavenger-Mutant | -9/Materials Scavenger-Mutant | -9/Mines Scavenger-Mutant | -9/Exiles Scavenger-Mutant | -8/Mines Scavenger-Mutant | -8/Materials Scavenger-Mutant | -7/Factory Scavenger-Mutant | -7/Lower Caves Scavenger-Mutant | -7/Lower Caves Scavenger-Mutant | -7/Data Miner Scavenger-Mutant | -6/Proximity Caves Scavenger-Mutant | -6/Factory Scavenger-Mutant | -6/Extension Scavenger-Mutant | -6/Cetus Scavenger-Mutant | -6/Archives Scavenger-Mutant | -6/Hub_04(d) Scavenger-Mutant | -5/Factory Scavenger-Skirmisher | -5/Upper Caves Scavenger-Skirmisher | -5/Upper Caves Scavenger-Skirmisher | -5/Warlord Scavenger-Mutant | -4/Proximity Caves Mutant | -4/Factory Mutant | -3/Research Mutant | -3/Armory Scavenger-Mutant | -3/Lab Generator-Mutant | -2/Research Generator-Mutant | -2/Testing Scavenger-Skirmisher | -2/Protoforge Resources | -11 -10 -10 -9 -9 -9 -8 -8 -7 -7 -7 -7 -6 -6 -6 -6 -6 -6 -5 -5 -5 -5 -4 -4 -3 -3 -3 -2 -2 -2 ----------- Run | Yrd Mat Min Mat Min Exi Min Mat Fac Low Low Dat Pro Fac Ext Cet Arc Hub Fac Upp Upp War Pro Fac Res Arm Lab Res Tes Frg Matter Collected 11076 | 189 396 . 594 72 . 91 297 649 545 739 . . 92 246 80 80 30 214 217 130 680 437 718 1004 1103 . 329 531 1613 Remotely . | . . . . . . . . . . . . . . . . . . . . . . . . . . . . . . Salvage Created 21513 | 36 612 . 1170 350 . 363 875 1087 393 543 . . 140 1226 347 303 564 900 340 168 43 815 1493 1149 4028 . 687 1286 2595 Parts 983 | 8 34 . 91 20 . 17 52 52 11 23 . . 4 45 9 17 24 37 26 2 1 35 67 31 181 . 28 55 113 Haulers Intercepted 16 | . 1 . 3 . . . 4 2 1 . . . . 2 . . 1 . . . . . . 1 . . . 1 . Recyclers Shooed 10 | . . . 5 . . . 2 1 . . . . . . . . . 1 . . . . . . . . 1 . . Parts Field Recycled . | . . . . . . . . . . . . . . . . . . . . . . . . . . . . . . Retrieved Matter . | . . . . . . . . . . . . . . . . . . . . . . . . . . . . . . Parts Self-Destructed 70 | . . . . . . . . . 12 23 . 1 . . . . . . 15 . . 19 . . . . . . . Prevented 28 | . . . . . . . . . . 7 . 3 . . . . . . . 2 . 16 . . . . . . . Kills | -11 -10 -10 -9 -9 -9 -8 -8 -7 -7 -7 -7 -6 -6 -6 -6 -6 -6 -5 -5 -5 -5 -4 -4 -3 -3 -3 -2 -2 -2 ------- Run | Yrd Mat Min Mat Min Exi Min Mat Fac Low Low Dat Pro Fac Ext Cet Arc Hub Fac Upp Upp War Pro Fac Res Arm Lab Res Tes Frg Combat Hostiles Destroyed 350 | . 12 . 22 3 . 6 12 15 6 17 . . 4 13 4 . 3 12 12 3 1 20 26 14 50 . 12 23 60 Melee 1 | . . . . . . . . . . . . . . . . . . . . . . . . . . . . . 1 Guns 57 | . 9 . 9 1 . 5 4 15 6 7 . . . . . . . . . . . . . 1 . . . . . Cannons 154 | . . . 8 2 . 1 7 . . . . . 4 13 4 . 3 10 5 . 1 6 8 3 24 . 5 12 38 AOE 94 | . 3 . 5 . . . . . . 10 . . . . . . . 2 7 1 . 12 12 8 10 . 5 6 13 Classes Destroyed 27 | 1 5 . 2 3 . . 1 2 . 1 . . . 1 . . 1 1 . . . 1 . 2 1 . 1 1 3 Worker 19 | . 2 . 3 1 . 1 1 2 . . . . . 1 . . 3 2 . . . . 1 . . . . . 2 Builder 15 | . . . . 2 . . 1 1 . . . . . . . . . 1 . . . . 8 . . . 1 . 1 Tunneler 11 | 2 . . 1 5 . 2 . . . . . . . . . . . . . . . . . 1 . . . . . Hauler 16 | . 1 . 3 . . . 4 2 1 . . . . 2 . . 1 . . . . . . 1 . . . 1 . Recycler 12 | . 2 . 3 . . . 1 3 . . . . . 1 . . . 1 . . . . 1 . . . . . . Carrier 1 | . . . . . . . . . . . . . . . . . . . . . . . . 1 . . . . . Mechanic 1 | . . . . . . . . . . . . . . . . . . 1 . . . . . . . . . . . Operator 12 | . . . 1 . . . 1 . . . . . . . . 9 . . . . . . . . . . . . 1 Drone 11 | . . . . . . . . . . . . . . . . . . . . . . . . . . . . . 11 Watcher 8 | . . . . . . . . 1 . . . . . 1 . . 3 1 . . . . . 1 . . . 1 . Swarmer 51 | . 3 . 9 . . . 2 5 . 2 . . 3 1 . . . . 8 1 . 5 4 4 . . 4 . . Grunt 118 | . 9 . 6 1 . 6 6 7 5 8 . . 1 6 . . . 9 . . . 6 11 5 14 . 1 7 10 Brawler 8 | . . . . 1 . . . . . . . . . . . . . . . 1 . 2 . . 3 . . . 1 Duelist 9 | . . . . 1 . . . . . . . . . . . . . . . . . 1 . . 3 . . . 4 Researcher 4 | . . . . . . . . . . . . . . . . . . . . . . . . . . . . 1 3 Sentry 36 | . . . 7 . . . 2 2 1 2 . . . 5 . . 1 . . 1 . 1 2 2 2 . 1 . 7 Demolisher 4 | . . . . . . . . . . . . . . . . . . . . . . 2 . 1 . . 1 . . Specialist 7 | . . . . . . . 2 . . . . . . . . . . . . . . . . . 5 . . . . Hunter 23 | . . . . . . . . . . . . . . . . . 1 . . . 1 2 . 1 8 . 4 4 2 Programmer 52 | . . . . . . . . 1 . . . . . . . . 1 3 4 . . 1 9 . 11 . . 12 10 Heavy 2 | . . . . . . . . . . . . . . . . . . . . . . . . . 2 . . . . Behemoth 1 | . . . . . . . . . . . . . . 1 . . . . . . . . . . . . . . . Armor Guard 2 | . . . . . . . . . . . . . . . . . . . . . . . . . 2 . . . . Cetus Guard 4 | . . . . . . . . . . . . . . . 4 . . . . . . . . . . . . . . Enhanced Grunt 2 | . . . . . . . . . . . . . . . . . 2 . . . . . . . . . . . . Hotshot 8 | . . . . . . . . . . . . . . . . . . . . . . . . . . . . . 8 Decapitator 2 | . . . . . . . . . . . . . . . . . . . . . . . . . . . . . 2 Immortal 2 | . . . . . . . . . . . . . . . . . . . . . . . . . . . . . 2 Striker 2 | . . . . . . . . . . . . . . . . . . . . . . . . 1 . . 1 . . V-Series 3 | . . . . . . . . . . . . . . . . . . . . . . . . . . . . . 3 Decomposer 1 | . . . . . . . . . . . . . . . . . . . 1 . . . . . . . . . . Thug 4 | . . . . . . . . . . 3 . . . . 1 . . . . . . . . . . . . . . Butcher 1 | . . . . . . . . . . 1 . . . . . . . . . . . . . . . . . . . Fireman 1 | . . . . . . . . . . . . . . . . . . . . . . . . . . . 1 . . Mutant 1 | . . . . . . . . . . 1 . . . . . . . . . . . . . . . . . . . Best Kill Streak 10 | 2 4 . 6 3 . 3 6 10 4 6 . . 3 2 2 4 2 9 8 3 1 5 7 7 9 . 6 5 10 Combat Bots Only 10 | . 3 . 6 2 . 3 2 7 3 6 . . 3 2 2 . 1 5 8 3 1 5 6 6 9 . 6 5 10 Max Kills in Single Turn 5 | 1 4 . 3 1 . 1 2 2 1 3 . . 1 2 1 2 3 5 3 1 1 2 3 4 2 . 3 4 4 Gunslinging . | . . . . . . . . . . . . . . . . . . . . . . . . . . . . . . Exploded 4 | . 3 . 3 . . . . . . 3 . . . . . . . 2 3 1 . 2 2 4 2 . 3 3 3 Melee 1 | . . . . . . . . . . . . . . . . . . . . . . . . . . . . . 1 Uniques/NPCs Destroyed 1 | . . . . . . . . . . . . . . . 1 . . . . . . . . . . . . . . A7 (-6/Cetus) Combat | -11 -10 -10 -9 -9 -9 -8 -8 -7 -7 -7 -7 -6 -6 -6 -6 -6 -6 -5 -5 -5 -5 -4 -4 -3 -3 -3 -2 -2 -2 -------- Run | Yrd Mat Min Mat Min Exi Min Mat Fac Low Low Dat Pro Fac Ext Cet Arc Hub Fac Upp Upp War Pro Fac Res Arm Lab Res Tes Frg Hostile Shots Fired 2623 | . 39 3 65 11 . 38 61 70 61 131 . . 82 150 15 9 29 40 42 23 57 139 199 34 579 . 102 203 441 Missed 704 | . 7 1 18 4 . 5 19 14 29 36 . . 29 63 5 3 12 5 13 3 14 29 57 8 152 . 23 54 101 Deflected 20 | . . . . . . . . . . . . . . . . . . . . . . . 3 . . . . . 17 Hits 1919 | . 32 2 47 7 . 33 42 56 32 95 . . 53 87 10 6 17 35 29 20 43 110 142 26 427 . 79 149 340 Melee 70 | . . . . . . . . . . 6 . . . . . . . . . 1 1 . . . 21 . . . 41 Projectile 1849 | . 32 2 47 7 . 33 42 56 32 89 . . 53 87 10 6 17 35 29 19 42 110 142 26 406 . 79 149 299 AOE 41 | . . 4 . . . . . . . . . . . 2 . . . . . . 6 16 . 1 . . 4 . 8 Critical Strikes 110 | . . . 3 . . 1 4 1 . 7 . . 1 2 4 1 . 2 2 . . 3 14 . 27 . 1 7 30 Actively Blocked 33 | . . . . . . . . . . . . . . . . . . . . . . . . . 19 . 1 4 9 Part Disruptions 8 | . . . . . . . . . . 2 . . . . . . 1 1 . . . . 1 . 1 . . 1 1 Damage Taken 38374 | . 353 143 586 76 . 564 572 769 248 1445 . . 609 819 262 137 292 469 401 261 1290 2952 3336 880 7892 . 1172 2644 10202 Core 3261 | . 55 36 98 . . 49 73 72 21 103 . . 130 96 50 48 . 9 56 22 68 113 347 84 317 . 34 195 1185 Absorbed by Shields 5258 | . . . . . . . . . 57 78 . . . 187 51 . . 205 139 135 245 . . . 1713 . 950 1340 158 Reduced by Siege Mode 1031 | . . . . . . . . . . . . . . . . . . . . 7 . 71 28 . 688 . 7 6 224 Redirected to Shielding 122 | . . . . . . . . . . . . . . . . . . . . . . . . . . . . . 122 Ignored by Resistances 185 | . . . . . . . . . 12 113 . . . 60 . . . . . . . . . . . . . . . Regen/Repaired (Parts) 3287 | . 12 . . . . . . . . . . . . . . . . . . . 276 . . . . . 1327 846 826 Core Remaining (%) 75 | 100 . 63 . . . 63 86 . . . . 72 . . . . 61 . . . . 73 69 . . 94 . . . Volleys Fired 1373 | 2 37 . 70 22 . 27 49 57 25 59 . 12 12 57 18 32 22 36 29 15 14 108 104 79 182 11 35 69 190 Largest 2 | 2 2 . 2 2 . 2 2 2 2 2 . 1 2 2 2 2 2 2 2 2 2 2 2 2 2 1 2 2 2 Hottest 240 | 60 70 . 91 91 . 91 136 53 50 66 . 90 95 120 155 155 155 175 175 175 175 188 188 210 240 120 240 233 240 Shots Fired 2203 | 4 73 . 138 44 . 54 97 114 50 90 . 12 17 114 36 60 43 62 54 18 27 120 123 93 282 11 56 109 302 Gun 489 | 4 72 . 96 22 . 27 41 114 50 60 . . . . . . . . . . . . . 3 . . . . . Cannon 1550 | . . . 40 22 . 27 55 . . 16 . 12 17 114 36 60 43 62 49 17 27 104 82 76 230 11 54 106 290 Launcher 164 | . 1 . 2 . . . 1 . . 14 . . . . . . . . 5 1 . 16 41 14 52 . 2 3 12 Special . | . . . . . . . . . . . . . . . . . . . . . . . . . . . . . . Kinetic 450 | 2 36 . 87 22 . 27 41 114 50 60 . . . . . . . . . . . . . . . . . . 11 Thermal 1506 | 2 36 . 49 22 . 27 55 . . 16 . 12 17 114 36 60 43 62 49 9 27 71 82 70 230 11 43 98 265 Explosive 76 | . 1 . 2 . . . 1 . . 14 . . . . . . . . 5 1 . 16 19 . . . 2 3 12 Electromagnetic 155 | . . . . . . . . . . . . . . . . . . . . 8 . 31 22 23 52 . 11 8 . Entropic 16 | . . . . . . . . . . . . . . . . . . . . . . 2 . . . . . . 14 Robot Hit Streak 30 | 2 18 . 11 10 . 8 9 12 9 10 . . 8 9 15 5 10 11 16 9 10 17 18 11 15 . 6 13 30 Robot Miss Streak 8 | . 3 . 3 3 . 3 6 4 2 3 . . 2 8 4 2 2 3 2 1 1 3 4 1 4 . 3 3 4 Penetration Max 1 | . . . . . . . . . . . . . . . . . . . . . . . . . . . . . 1 Secondary Targets 7 | . . . . . . . 1 4 1 1 . . . . . . . . . . . . . . . . . . . Max Gunslinging Chain 1 | . . . . . . . 1 1 1 1 . . . . . . . . . . . . . . . . . . . Capacitor 35 | . . . . . . . . . . . . . . . . . . . . . . . 31 4 . . . . . Shots Hit Robots 1235 | 2 53 . 95 25 . 39 55 78 37 59 . . 11 68 26 35 21 35 20 10 17 53 63 34 140 . 28 57 174 Core Hits 744 | 2 28 . 45 13 . 16 28 43 17 49 . . 5 37 15 17 20 24 15 1 4 44 54 26 88 . 16 29 108 Critical Kills 22 | . . . 1 . . . 1 . . . . . . 1 . 2 . 1 . . . . 1 2 2 . 1 3 7 Critical Parts Destroyed 2 | . . . . . . . . . . . . . . . . . . . . . . . . . . . . . 2 Critical Strikes 26 | . . . 1 . . . 1 . . . . . . 1 . 2 . 1 . . . 1 1 2 2 . 1 4 9 Meltdown 22 | . . . 1 . . . 1 . . . . . . 1 . 2 . 1 . . . . 1 2 2 . 1 3 7 Corrupt 2 | . . . . . . . . . . . . . . . . . . . . . . 1 . . . . . 1 . Smash 2 | . . . . . . . . . . . . . . . . . . . . . . . . . . . . . 2 Melee Attacks 7 | . . . . . . . . . . . . . . . . . . . . . . 1 . . . . . . 6 Impact 7 | . . . . . . . . . . . . . . . . . . . . . . 1 . . . . . . 6 Slashing . | . . . . . . . . . . . . . . . . . . . . . . . . . . . . . . Piercing . | . . . . . . . . . . . . . . . . . . . . . . . . . . . . . . Sneak Attacks . | . . . . . . . . . . . . . . . . . . . . . . . . . . . . . . Combat Hostiles . | . . . . . . . . . . . . . . . . . . . . . . . . . . . . . . Follow-up Attacks . | . . . . . . . . . . . . . . . . . . . . . . . . . . . . . . Damage Inflicted 60668 | 25 876 . 1827 465 . 732 1137 1418 619 2455 . . 297 2281 836 1057 1037 1844 1207 466 644 3619 4849 2210 9270 . 2154 4442 14901 Guns 5405 | 25 629 . 946 174 . 263 476 1406 619 851 . . . . . . . . . . . . . 16 . . . . . Cannons 32884 | . . . 660 291 . 434 635 . . . . . 297 2231 836 1057 626 1155 711 287 604 1579 1939 882 5993 . 1582 3014 8071 Explosions 21746 | . 230 . 221 . . . . . . 1604 . . . . . . 361 649 496 179 . 2040 2894 1262 3277 . 572 1428 6533 Melee 297 | . . . . . . . . . . . . . . . . . . . . . . . . . . . . . 297 Ramming 336 | . 17 . . . . 35 26 12 . . . . . 50 . . 50 40 . . 40 . 16 50 . . . . . Kinetic 5410 | 25 368 . 896 174 . 263 476 1406 619 851 . . . . . . . . . . . . . . . . . . 332 Thermal 31419 | . 261 . 710 291 . 434 635 . . . . . 297 2231 836 1057 626 1804 711 32 604 945 2077 1130 5993 . 1228 2532 6985 Explosive 14511 | . 230 . 221 . . . . . . 1604 . . . . . . . . 496 179 . 2040 1450 . . . 572 1428 6291 Electromagnetic 7699 | . . . . . . . . . . . . . . . . . 361 . . 255 . 634 1306 1030 3277 . 354 482 . Impact 539 | . . . . . . . . . . . . . . . . . . . . . . . . . . . . . 539 Slashing . | . . . . . . . . . . . . . . . . . . . . . . . . . . . . . . Piercing . | . . . . . . . . . . . . . . . . . . . . . . . . . . . . . . Entropic 754 | . . . . . . . . . . . . . . . . . . . . . . . . . . . . . 754 Highest Corruption 82 | . . . . . . . . 4 4 . . . . . . 6 10 1 6 6 6 19 31 3 53 82 . 21 59 Average Corruption 11 | . . . . . . . . 2 3 . . . . . . 2 1 1 5 6 5 3 12 2 30 53 . 10 13 Corruption Purged 15 | . . . . . . . . . 4 . . . . . . 11 . . . . . . . . . . . . . Corruption Blocked . | . . . . . . . . . . . . . . . . . . . . . . . . . . . . . . Effects 469 | . . . . . . . . 5 22 . . . . . . 2 8 3 28 42 1 26 62 13 80 22 . 71 84 Message Errors 101 | . . . . . . . . 1 4 . . . . . . 1 2 . 8 11 1 8 9 3 16 2 . 15 20 Matter Fused 115 | . . . . . . . . 1 7 . . . . . . . 2 1 6 9 . 7 14 3 22 7 . 16 20 Heat Flow Errors 32 | . . . . . . . . . 2 . . . . . . . 1 1 2 3 . 2 4 . 6 5 . 2 4 Energy Discharges 51 | . . . . . . . . 3 2 . . . . . . 1 . 1 2 6 . 3 7 . 6 2 . 11 7 Parts Rejected 9 | . . . . . . . . . 1 . . . . . . . . . . . . . 3 . 2 . . 1 2 Parts Fused 12 | . . . . . . . . . 1 . . . . . . . . . 1 1 . 1 1 . 1 1 . 4 1 Data Loss (minor) 61 | . . . . . . . . . 2 . . . . . . . 1 . 6 7 . 2 8 4 6 1 . 13 11 Data Loss (major) 26 | . . . . . . . . . 1 . . . . . . . . . 2 2 . 1 7 2 5 2 . 3 1 Misfires 17 | . . . . . . . . . . . . . . . . . . . 1 1 . 2 5 . 2 1 . 3 2 Alerts 12 | . . . . . . . . . 2 . . . . . . . 2 . . 2 . . 1 . 3 . . 1 1 Misdirections 13 | . . . . . . . . . . . . . . . . . . . . . . . 2 . 1 . . 1 9 Weapon Failures 20 | . . . . . . . . . . . . . . . . . . . . . . . 1 1 10 1 . 1 6 Overload Shots 8 | . . . . . . . . . . . . 2 . . . . . 6 . . . . . . . . . . . Effects 1 | . . . . . . . . . . . . . . . . . . 1 . . . . . . . . . . . Heat Surge 1 | . . . . . . . . . . . . . . . . . . 1 . . . . . . . . . . . Overflow Damage 2425 | . 6 . 16 1 . . . . . 6 . . . . . 33 21 177 47 37 . 71 273 42 166 . 101 113 1315 Projectiles 857 | . . . 6 1 . . . . . . . . . . . 33 . 6 8 37 . 7 162 6 166 . 21 78 326 Explosions 1316 | . 6 . 10 . . . . . . 6 . . . . . . 21 161 39 . . 64 111 26 . . 80 35 757 Melee 252 | . . . . . . . . . . . . . . . . . . 10 . . . . . 10 . . . . 232 Knockbacks 7 | . . . . . . . . . . . . . . 1 . . . . . . 2 . . . . . . . 4 Impact 6 | . . . . . . . . . . . . . . 1 . . . . . . 1 . . . . . . . 4 Kinetic . | . . . . . . . . . . . . . . . . . . . . . . . . . . . . . . Secondary 1 | . . . . . . . . . . . . . . . . . . . . . 1 . . . . . . . . Self-Inflicted Damage 1518 | . . . . . . . . . . 81 . . . . . . 95 . . . . 117 496 128 406 . . 69 126 Shots 47 | . . . . . . . . . . 4 . . . . . . 1 . . . . 3 15 5 17 . . 1 1 Rammed 18 | . . . . . . 3 2 2 . . . . . 3 . . 1 3 . . 2 . 1 1 . . . . . Targets Rammed 25 | . 4 . . . . 4 3 2 . . . . . 3 . . 2 3 . . 2 . 1 1 . . . . . Kicked 4 | . 4 . . . . . . . . . . . . . . . . . . . . . . . . . . . . Crushed 3 | . . . . . . 1 1 . . . . . . . . . 1 . . . . . . . . . . . . Highest Temperature 549 | . 69 . 42 3 . 87 54 45 203 37 . 92 . 163 72 216 170 288 228 264 327 379 328 399 496 222 448 549 418 Average Temperature 103 | . 23 . 13 3 . 27 20 20 39 9 . 51 . 56 39 67 45 96 103 68 131 131 106 98 122 85 193 130 106 Received Heat Transfer 5000 | . 171 . 207 36 . 315 252 240 107 522 . . 39 244 . 9 39 188 . 20 103 340 301 84 607 . 22 145 1009 Effects 32 | . . . . . . . . . . . . . . . . 3 . . 1 . . 4 2 . 9 . 4 4 5 Shutdowns 11 | . . . . . . . . . . . . . . . . . . . . . . . . . 3 . 3 3 2 Energy Bleed 7 | . . . . . . . . . . . . . . . . . . . 1 . . 3 . . 2 . . 1 . Interference 8 | . . . . . . . . . . . . . . . . 3 . . . . . . 2 . . . . . 3 Short Circuit 1 | . . . . . . . . . . . . . . . . . . . . . . . . . . . 1 . . Damage (minor) 1 | . . . . . . . . . . . . . . . . . . . . . . 1 . . . . . . . Damage (major) 4 | . . . . . . . . . . . . . . . . . . . . . . . . . 4 . . . . Siege Activations 24 | . . . . . . . . . . . . . . . . . . . . 1 . 3 3 1 9 . 2 3 2 Total Turns 465 | . . . . . . . . . . . . . . . . . . . . 18 . 75 37 1 225 . 16 37 56 Longest Duration 64 | . . . . . . . . . . . . . . . . . . . . 18 . 41 22 1 64 . 13 14 52 Martial Activations . | . . . . . . . . . . . . . . . . . . . . . . . . . . . . . . Shielding Activations 5 | . . . . . . . . . . . . . . . . . . . . . . . 1 . . . . . 4 Total Turns 144 | . . . . . . . . . . . . . . . . . . . . . . . 18 . . . . . 126 Longest Duration 54 | . . . . . . . . . . . . . . . . . . . . . . . 18 . . . . . 54 Robots Disrupted . | . . . . . . . . . . . . . . . . . . . . . . . . . . . . . . Combat Hostiles . | . . . . . . . . . . . . . . . . . . . . . . . . . . . . . . Robots Corrupted 33 | . . . . . . . . . . . . . . . . . 1 1 . 2 . 2 5 2 14 . 3 2 1 Combat Hostiles 29 | . . . . . . . . . . . . . . . . . . . . 2 . 2 5 1 14 . 2 2 1 Parts Fried 64 | . . . . . . . . . . . . . . . . . 2 2 . . . 7 15 7 18 . 2 10 1 Impact Corruptions 9 | . . . . . . . . . . . . . . . . . . 1 . . . . . 1 . . . . 7 Robots Melted 22 | . . . 1 . . . 1 . . . . . . 1 . 2 . 1 . . . . 1 2 2 . 1 3 7 Combat Hostiles 15 | . . . . . . . 1 . . . . . . . . . . . . . . . 1 1 2 . . 3 7 Parts Melted 80 | . . . 5 1 . 3 5 . . . . . 1 5 1 6 1 3 2 . . 2 1 5 21 . 5 4 9 Heat Transferred 31846 | . 623 . 1332 518 . 777 1147 . . . . . 407 3125 1244 1553 894 1797 740 50 745 1050 1238 1064 5032 . 999 1887 5624 Parts Sabotaged 2 | . . . . . . . . . . . . . . . . . . . . . . . . . . . . . 2 Parts Stolen 1 | . . . . . . . . . . 1 . . . . . . . . . . . . . . . . . . . Parts Stripped . | . . . . . . . . . . . . . . . . . . . . . . . . . . . . . . Power Chain Reactions 6 | . . . . . . . . . . . . . . . . . . . . . . . 4 2 . . . . . Alert | -11 -10 -10 -9 -9 -9 -8 -8 -7 -7 -7 -7 -6 -6 -6 -6 -6 -6 -5 -5 -5 -5 -4 -4 -3 -3 -3 -2 -2 -2 ------- Run | Yrd Mat Min Mat Min Exi Min Mat Fac Low Low Dat Pro Fac Ext Cet Arc Hub Fac Upp Upp War Pro Fac Res Arm Lab Res Tes Frg Maximum Alert Level 5 | . . . . 1 . . . 1 . . . . . 3 2 1 3 2 . . . . 3 2 4 . 1 2 5 Low Security (%) 59 | 100 100 100 100 99 . 100 100 81 . . . . 100 58 . 10 19 39 . . . . 47 . 4 . 77 76 24 Level 1 17 | . . . . . . . . 18 . . . . . 20 6 89 16 39 . . . . 23 66 26 . 22 17 5 Level 2 12 | . . . . . . . . . . . . . . 8 93 . 32 21 . . . . 18 33 17 . . 5 26 Level 3 6 | . . . . . . . . . . . . . . 11 . . 31 . . . . . 10 . 41 . . . 9 Level 4 2 | . . . . . . . . . . . . . . . . . . . . . . . . . 9 . . . 16 Level 5 1 | . . . . . . . . . . . . . . . . . . . . . . . . . . . . . 16 High Security . | . . . . . . . . . . . . . . . . . . . . . . . . . . . . . . Max Security . | . . . . . . . . . . . . . . . . . . . . . . . . . . . . . . Peak Influence 1980 | 5 119 . 157 207 . 57 119 244 . . . . 59 915 558 338 885 468 . . . . 840 459 1141 . 265 436 1980 Initial 505 | . 3 . . 52 . . . 33 . . . . . . 505 197 63 358 . . . . . 435 217 . . 77 91 Average 270 | . 34 . 90 59 . 9 48 92 . . . . 12 281 482 272 464 260 . . . . 316 348 645 . 117 169 799 Influence Increases 16195 | 10 402 . 650 348 . 170 379 471 170 250 . . 145 1887 324 322 1175 588 285 60 35 466 1452 543 1614 . 469 1155 2825 Destroy 0b10 Robot/C 8120 | . 240 . 440 200 . 120 240 300 120 240 . . 80 960 160 80 280 260 240 60 20 400 520 300 1000 . 240 520 1100 Destroy 0b10 Robot/NC 560 | 10 25 . 55 40 . 15 40 45 5 . . . . 45 10 45 40 30 5 . . 5 55 15 . . 5 10 60 Destroy Leader 1246 | . 32 . 126 40 . 20 48 56 . 10 . . 10 94 . . 80 52 40 . . 30 110 54 180 . 50 94 120 Allied During Kill 1364 | . . . . 38 . . . . . . . . . 677 139 114 312 44 . . . 1 . . . . . 39 . Successful Hack 430 | . 27 . 9 . . . 9 8 . . . . 24 5 . . 40 34 . . . . 4 42 52 . . 57 119 Select Force Hacks 60 | . 60 . . . . . . . . . . . . . . . . . . . . . . . . . . . . Disable Machine 1305 | . . . . . . . 15 . . . . . 15 30 . 75 300 90 . . . . 180 45 165 . 30 120 240 Anti-Garrison Action 150 | . . . . . . . . . . . . . . . . . . . . . . . . . . . . . 150 Destroy Structure 1705 | . 3 . 5 . . . 12 2 . . . . 1 31 15 8 123 78 . . . . 538 72 172 . 144 225 276 Partial Spotted 30 | . . . . . . . . . . . . . . . . . . . . . . . . . . . . . 30 Lose Combat Pursuer 825 | . 15 . 15 30 . 15 15 60 45 . . . 15 45 . . . . . . 15 30 45 15 45 . . 90 330 Active Sensor Use 400 | . . . . . . . . . . . . . . . . . . . . . . . . . . . . . 400 Influence Decreases 14215 | 5 407 . 515 483 . 170 304 366 350 138 112 . 145 984 734 634 624 1214 359 56 71 464 624 959 907 1121 331 1130 1008 Entered New Map 3423 | . 2 . . 83 . . . 42 67 . 112 . . . 398 296 118 374 40 7 36 . 2 395 197 1121 . 61 72 Time Decay 8239 | 5 369 . 505 400 . 160 294 294 273 118 . . 120 533 246 278 446 350 319 49 26 344 442 534 550 . 321 627 636 Lost Part 975 | . . . 10 . . 10 10 30 10 20 . . 25 21 10 . . 20 . . 9 120 160 30 160 . 10 20 300 Lost Ally 540 | . . . . . . . . . . . . . . 280 80 60 60 20 . . . . 20 . . . . 20 . Purge Threat 1038 | . 36 . . . . . . . . . . . . 150 . . . 450 . . . . . . . . . 402 . Squads Dispatched 82 | . 4 . 1 . . . 2 3 . . . . 4 3 . . 5 5 . . . . 8 8 9 . 1 10 19 Investigation 18 | . 4 . 1 . . . . 1 . . . . . 1 . . 1 . . . . . 1 3 1 . 1 . 4 Extermination 24 | . . . . . . . . 1 . . . . 1 . . . 1 2 . . . . 4 . 4 . . 6 5 Reinforcement 27 | . . . . . . . 2 1 . . . . 1 1 . . 2 3 . . . . 3 5 3 . . 4 2 Assault 11 | . . . . . . . . . . . . . 2 1 . . 1 . . . . . . . 1 . . . 6 Garrison 2 | . . . . . . . . . . . . . . . . . . . . . . . . . . . . . 2 Intercept . | . . . . . . . . . . . . . . . . . . . . . . . . . . . . . . Searches Triggered . | . . . . . . . . . . . . . . . . . . . . . . . . . . . . . . Data Miner Redirects 10 | . . . . . . . . . . . . . 2 . . . 1 . . . . . . . 1 . . . 6 Construction Impeded 2 | . . . . . . . . . . . . . . . . . . . . . . . 2 . . . . . . Haulers Reinforced 5 | . . . . . . . . 1 . . . . . . . . 1 1 . . . . . 1 . . . 1 . Active Scanning Responses 4 | . . . . . . . . . . . . . . . . . . . . . . . . . . . . . 4 Cargo Convoy Interrupts . | . . . . . . . . . . . . . . . . . . . . . . . . . . . . . . Stealth | -11 -10 -10 -9 -9 -9 -8 -8 -7 -7 -7 -7 -6 -6 -6 -6 -6 -6 -5 -5 -5 -5 -4 -4 -3 -3 -3 -2 -2 -2 --------- Run | Yrd Mat Min Mat Min Exi Min Mat Fac Low Low Dat Pro Fac Ext Cet Arc Hub Fac Upp Upp War Pro Fac Res Arm Lab Res Tes Frg Distress Signals 67 | . 1 . 1 . . . 2 3 . . . . . 2 2 . . . . . . 25 1 7 4 . 14 2 3 Communications Jammed 104 | . . . . . . . . . . . . . 13 21 . . . 1 . . . . 10 . . . . 3 56 Distress Signals 99 | . . . . . . . . . . . . . 13 21 . . . . . . . . 10 . . . . 1 54 Times Spotted 597 | . 20 1 30 10 . 7 28 26 6 20 . . 9 46 10 9 14 16 8 3 30 28 34 33 65 . 16 31 97 Peak Tracking Total 16 | . 6 1 6 5 . 3 6 5 5 6 . . 6 6 5 1 3 4 4 3 16 6 6 5 10 . 5 5 16 Tactical Retreats 32 | . 1 . 1 1 . 1 1 4 1 . . . 1 3 . . . . . . 1 1 3 1 3 . . 3 6 Traps | -11 -10 -10 -9 -9 -9 -8 -8 -7 -7 -7 -7 -6 -6 -6 -6 -6 -6 -5 -5 -5 -5 -4 -4 -3 -3 -3 -2 -2 -2 ------- Run | Yrd Mat Min Mat Min Exi Min Mat Fac Low Low Dat Pro Fac Ext Cet Arc Hub Fac Upp Upp War Pro Fac Res Arm Lab Res Tes Frg Traps Triggered 27 | . 1 . 1 . . . . 2 . . . . . 1 . . . . . . . . 1 2 5 . . 2 12 Indirectly 3 | . . . . . . . . . . . . . . . . . . . . . . . . . 3 . . . . Trap Hack Attempts . | . . . . . . . . . . . . . . . . . . . . . . . . . . . . . . Triggered . | . . . . . . . . . . . . . . . . . . . . . . . . . . . . . . Disarmed . | . . . . . . . . . . . . . . . . . . . . . . . . . . . . . . Reprogrammed . | . . . . . . . . . . . . . . . . . . . . . . . . . . . . . . Reused . | . . . . . . . . . . . . . . . . . . . . . . . . . . . . . . Traps Extracted . | . . . . . . . . . . . . . . . . . . . . . . . . . . . . . . Installed . | . . . . . . . . . . . . . . . . . . . . . . . . . . . . . . Triggered . | . . . . . . . . . . . . . . . . . . . . . . . . . . . . . . Machines | -11 -10 -10 -9 -9 -9 -8 -8 -7 -7 -7 -7 -6 -6 -6 -6 -6 -6 -5 -5 -5 -5 -4 -4 -3 -3 -3 -2 -2 -2 ---------- Run | Yrd Mat Min Mat Min Exi Min Mat Fac Low Low Dat Pro Fac Ext Cet Arc Hub Fac Upp Upp War Pro Fac Res Arm Lab Res Tes Frg Machines Disabled 107 | . . . . . . . 1 . . 4 . 1 1 3 . 5 20 6 . . . 4 12 3 11 2 2 9 23 Max in Single Turn 18 | . . . . . . . 1 . . 2 . 1 1 1 . 1 18 4 . . . 1 4 3 1 1 1 1 1 Garrison Access 10 | . . . . . . . . 1 . . . . 2 . . . . 1 . . . . 1 2 . . 1 1 1 Network Hub 2 | . . . . . . . . . . . . . . . . . 2 . . . . . . . . . . . . Machines Repaired . | . . . . . . . . . . . . . . . . . . . . . . . . . . . . . . Machines Dismantled . | . . . . . . . . . . . . . . . . . . . . . . . . . . . . . . Machines Sabotaged . | . . . . . . . . . . . . . . . . . . . . . . . . . . . . . . Overloaded Fab Kills . | . . . . . . . . . . . . . . . . . . . . . . . . . . . . . . Hacking | -11 -10 -10 -9 -9 -9 -8 -8 -7 -7 -7 -7 -6 -6 -6 -6 -6 -6 -5 -5 -5 -5 -4 -4 -3 -3 -3 -2 -2 -2 --------- Run | Yrd Mat Min Mat Min Exi Min Mat Fac Low Low Dat Pro Fac Ext Cet Arc Hub Fac Upp Upp War Pro Fac Res Arm Lab Res Tes Frg Machines Accessed 72 | . 10 . 5 . . . 4 5 . . 4 1 4 4 . . 4 4 1 2 1 . 3 2 4 . 1 7 6 Terminals 47 | . 7 . 5 . . . 2 2 . . . 1 2 4 . . 3 3 . 1 . . . 1 4 . 1 6 5 Fabricators 2 | . . . . . . . . 1 . . . . . . . . . . . . . . 1 . . . . . . Repair Stations 2 | . 1 . . . . . . . . . . . . . . . . . . . . . . . . . . . 1 Recycling Units 4 | . 2 . . . . . 2 . . . . . . . . . . . . . . . . . . . . . . Scanalyzers 1 | . . . . . . . . . . . . . 1 . . . . . . . . . . . . . . . . Garrison Access 9 | . . . . . . . . 2 . . . . 1 . . . 1 1 . . . . 2 1 . . . 1 . Total Hacks 232 | . 29 . 15 . . . 14 9 . . 26 2 13 11 . . 8 26 1 3 1 . 4 4 10 . 5 28 23 Successful 121 | . 18 . 7 . . . 5 3 . . 26 2 4 4 . . 2 12 1 3 1 . 3 3 5 . . 12 10 Failed 110 | . 10 . 8 . . . 9 6 . . . . 9 7 . . 6 14 . . . . 1 1 5 . 5 16 13 Catastrophic 24 | . 1 . 1 . . . . 1 . . . . 3 2 . . 2 5 . . . . 1 . 2 . 1 3 2 Database Lockouts 1 | . 1 . . . . . . . . . . . . . . . . . . . . . . . . . . . . Manual 106 | . 25 . 14 . . . 6 2 . . . . . 10 1 . 7 12 . . 1 . . 1 2 . . 13 12 Terminals 172 | . 24 . 15 . . . 8 5 . . . 2 8 11 . . 7 24 . 2 . . . 3 10 . 5 27 21 Fabricators 4 | . . . . . . . . 2 . . . . . . . . . . . . . . 2 . . . . . . Repair Stations 5 | . 3 . . . . . . . . . . . . . . . . . . . . . . . . . . . 2 Recycling Units 8 | . 2 . . . . . 6 . . . . . . . . . . . . . . . . . . . . . . Scanalyzers 4 | . . . . . . . . . . . . . 4 . . . . . . . . . . . . . . . . Garrison Access 10 | . . . . . . . . 2 . . . . 1 . . . 1 2 . . . . 2 1 . . . 1 . Terminal Hacks 73 | . 5 . 1 . . . 1 1 . . 26 2 . 2 . . . 8 1 3 1 . . 1 5 . . 10 6 Record 16 | . . . . . . . . . . . 11 2 . . . . . . . 2 . . . . . . . . 1 Part Schematic 11 | . 2 . . . . . . . . . 8 . . . . . . . . . . . . . 1 . . . . Robot Schematic 4 | . . . . . . . . . . . 4 . . . . . . . . . . . . . . . . . . Robot Analysis 1 | . 1 . . . . . . . . . . . . . . . . . . . . . . . . . . . . Prototype ID Bank 7 | . . . . . . . 1 . . . 3 . . 1 . . . . . . . . . . . . . 2 . Open Door 5 | . . . . . . . . . . . . . . . . . . . 1 1 1 . . . 2 . . . . Branch Access Points 3 | . . . . . . . . 1 . . . . . . . . . 1 . . . . . 1 . . . . . Terminal Index 3 | . . . . . . . . . . . . . . . . . . . . . . . . . 1 . . 1 1 Alert Level 1 | . . . . . . . . . . . . . . . . . . 1 . . . . . . . . . . . Unreport Threat 8 | . 1 . . . . . . . . . . . . 1 . . . 3 . . . . . . . . . 3 . Locate Traps 4 | . 1 . 1 . . . . . . . . . . . . . . 1 . . . . . . . . . . 1 Hauler Manifests 1 | . . . . . . . . . . . . . . . . . . 1 . . . . . . . . . . . Registered Components 1 | . . . . . . . . . . . . . . . . . . 1 . . . . . . . . . . . Zone Layout 7 | . . . . . . . . . . . . . . . . . . . . . . . . . 1 . . 4 2 Proto ID Catalog 1 | . . . . . . . . . . . . . . . . . . . . . . . . . . . . . 1 Fabricator Hacks 3 | . . . . . . . . 1 . . . . . . . . . . . . . . 2 . . . . . . Network Status 1 | . . . . . . . . 1 . . . . . . . . . . . . . . . . . . . . . Load Schematic 1 | . . . . . . . . . . . . . . . . . . . . . . . 1 . . . . . . Build 1 | . . . . . . . . . . . . . . . . . . . . . . . 1 . . . . . . Repair Station Hacks 3 | . 3 . . . . . . . . . . . . . . . . . . . . . . . . . . . . Scan Component 2 | . 2 . . . . . . . . . . . . . . . . . . . . . . . . . . . . Repair 1 | . 1 . . . . . . . . . . . . . . . . . . . . . . . . . . . . Recycling Unit Hacks 2 | . . . . . . . 2 . . . . . . . . . . . . . . . . . . . . . . Retrieve Components 2 | . . . . . . . 2 . . . . . . . . . . . . . . . . . . . . . . Scanalyzer 3 | . . . . . . . . . . . . . 3 . . . . . . . . . . . . . . . . Insert Component 2 | . . . . . . . . . . . . . 2 . . . . . . . . . . . . . . . . Analyze 1 | . . . . . . . . . . . . . 1 . . . . . . . . . . . . . . . . Garrison Access Hacks 6 | . . . . . . . . 1 . . . . 1 . . . . 1 . . . . 1 1 . . . 1 . Seal Access 6 | . . . . . . . . 1 . . . . 1 . . . . 1 . . . . 1 1 . . . 1 . Unauthorized Hacks 31 | . 10 . 6 . . . 2 . . . . . . 2 . . 2 3 . . . . . 1 . . . 1 4 Terminals 29 | . 8 . 6 . . . 2 . . . . . . 2 . . 2 3 . . . . . 1 . . . 1 4 Track 2 | . . . . . . . . . . . . . . . . . . 1 . . . . . . . . . . 1 Assimilate 1 | . . . . . . . . . . . . . . . . . . . . . . . . . . . . . 1 Botnet 10 | . 2 . 1 . . . 1 . . . . . . 2 . . 1 2 . . . . . . . . . . 1 Detonate 1 | . . . . . . . . . . . . . . . . . 1 . . . . . . . . . . . . Operators 3 | . . . . . . . . . . . . . . . . . . . . . . . . 1 . . . 1 1 Skim 12 | . 6 . 5 . . . 1 . . . . . . . . . . . . . . . . . . . . . . Fabricators . | . . . . . . . . . . . . . . . . . . . . . . . . . . . . . . Repair Stations . | . . . . . . . . . . . . . . . . . . . . . . . . . . . . . . Recycling Units 2 | . 2 . . . . . . . . . . . . . . . . . . . . . . . . . . . . Tunnel 2 | . 2 . . . . . . . . . . . . . . . . . . . . . . . . . . . . Scanalyzers . | . . . . . . . . . . . . . . . . . . . . . . . . . . . . . . Garrison Access . | . . . . . . . . . . . . . . . . . . . . . . . . . . . . . . Data Cores Recovered 4 | . . . 1 . . . 1 . . . . . . 2 . . . . . . . . . . . . . . . Used . | . . . . . . . . . . . . . . . . . . . . . . . . . . . . . . Hacking Detections 50 | . 7 . 4 . . . 2 4 . . . 1 3 4 1 . 4 3 . 1 . . 2 1 2 . 1 6 4 Full Trace Events 6 | . 1 . . . . . . 1 . . . . . 1 . . 1 . . . . . 1 . . . 1 . . Feedback Events . | . . . . . . . . . . . . . . . . . . . . . . . . . . . . . . Feedback Blocked . | . . . . . . . . . . . . . . . . . . . . . . . . . . . . . . Robot Schematics Acquired 5 | . . . . . . . . . . . 4 . . . . . . . . . . . . . . . . 1 . Robots Built . | . . . . . . . . . . . . . . . . . . . . . . . . . . . . . . Authchips . | . . . . . . . . . . . . . . . . . . . . . . . . . . . . . . Time . | . . . . . . . . . . . . . . . . . . . . . . . . . . . . . . Total Robot Build Rating . | . . . . . . . . . . . . . . . . . . . . . . . . . . . . . . Part Schematics Acquired 16 | . 2 . . . . . . . . . 8 . 1 . . . . . . . . . . . 1 . . 4 . Parts Built 1 | . . . . . . . . . . . . . . . . . . . . . . . 1 . . . . . . Authchips . | . . . . . . . . . . . . . . . . . . . . . . . . . . . . . . Time 106 | . . . . . . . . . . . . . . . . . . . . . . . 106 . . . . . . Total Part Build Rating 6 | . . . . . . . . . . . . . . . . . . . . . . . 6 . . . . . . Parts Repaired 1 | . 1 . . . . . . . . . . . . . . . . . . . . . . . . . . . . Time 26 | . 26 . . . . . . . . . . . . . . . . . . . . . . . . . . . . Parts Recycled . | . . . . . . . . . . . . . . . . . . . . . . . . . . . . . . Recycled Matter . | . . . . . . . . . . . . . . . . . . . . . . . . . . . . . . Retrieved Matter . | . . . . . . . . . . . . . . . . . . . . . . . . . . . . . . Retrieved Components 19 | . . . . . . . 19 . . . . . . . . . . . . . . . . . . . . . . Parts Scanalyzed 1 | . . . . . . . . . . . . . 1 . . . . . . . . . . . . . . . . Part Schematics Acquired 1 | . . . . . . . . . . . . . 1 . . . . . . . . . . . . . . . . Parts Damaged . | . . . . . . . . . . . . . . . . . . . . . . . . . . . . . . Bothacking | -11 -10 -10 -9 -9 -9 -8 -8 -7 -7 -7 -7 -6 -6 -6 -6 -6 -6 -5 -5 -5 -5 -4 -4 -3 -3 -3 -2 -2 -2 ------------ Run | Yrd Mat Min Mat Min Exi Min Mat Fac Low Low Dat Pro Fac Ext Cet Arc Hub Fac Upp Upp War Pro Fac Res Arm Lab Res Tes Frg Used RIF Installer . | . . . . . . . . . . . . . . . . . . . . . . . . . . . . . . Robots Hacked . | . . . . . . . . . . . . . . . . . . . . . . . . . . . . . . Non-combat . | . . . . . . . . . . . . . . . . . . . . . . . . . . . . . . Combat . | . . . . . . . . . . . . . . . . . . . . . . . . . . . . . . Robot Hacks Applied . | . . . . . . . . . . . . . . . . . . . . . . . . . . . . . . Relay Couplers Released 6 | . . . . . . . . . . . . . 2 . . . . . . . . . . 3 . . 1 . . Machine Destruction 6 | . . . . . . . . . . . . . 2 . . . . . . . . . . 3 . . 1 . . Fabnet Peak Effective % . | . . . . . . . . . . . . . . . . . . . . . . . . . . . . . . Robots Rewired 22 | . . . . . . . . . . . . . . 19 . . . . . . . 2 . . . . . 1 . Allies Hacked . | . . . . . . . . . . . . . . . . . . . . . . . . . . . . . . Hacks Repelled . | . . . . . . . . . . . . . . . . . . . . . . . . . . . . . . Allies | -11 -10 -10 -9 -9 -9 -8 -8 -7 -7 -7 -7 -6 -6 -6 -6 -6 -6 -5 -5 -5 -5 -4 -4 -3 -3 -3 -2 -2 -2 -------- Run | Yrd Mat Min Mat Min Exi Min Mat Fac Low Low Dat Pro Fac Ext Cet Arc Hub Fac Upp Upp War Pro Fac Res Arm Lab Res Tes Frg Total Allies 37 | . . . . 3 . . . . . . . . . 26 5 . . . . . . 2 . . . . . 1 . Largest Group 18 | . . . . 3 3 1 . . . . . . . 18 10 9 6 1 . . . 2 2 . . . . 1 . Highest-Rated Group 731 | . . . . 40 36 8 . . . . . . . 670 731 583 499 96 . . . 98 98 . . . . 147 . Highest-Rated Ally 159 | . . . . 16 16 8 . . . . . . . 159 143 96 96 96 . . . 49 49 . . . . 147 . Total Orders 17 | . . . . . . . . . . . . . . . 2 2 13 . . . . . . . . . . . . STAY 9 | . . . . . . . . . . . . . . . 1 1 7 . . . . . . . . . . . . FOLLOW 8 | . . . . . . . . . . . . . . . 1 1 6 . . . . . . . . . . . . Ally Attacks 421 | . . . . 33 . 1 . . . . . . . 236 48 24 48 13 . . . 5 5 . . . . 8 . Total Damage 10546 | . . . . 321 . 11 . . . . . . . 4965 1456 675 1498 349 . . . 256 385 . . . . 630 . Kills 75 | . . . . 7 . . . . . . . . . 41 6 4 12 1 . . . 1 1 . . . . 2 . Allies Corrupted 6 | . . . . . . . . . . . . . . . . . 4 1 . . . . . . . . . 1 . Allies Melted 2 | . . . . . . . . . . . . . . . . . . . . . 2 . . . . . . . . Intel | -11 -10 -10 -9 -9 -9 -8 -8 -7 -7 -7 -7 -6 -6 -6 -6 -6 -6 -5 -5 -5 -5 -4 -4 -3 -3 -3 -2 -2 -2 ------- Run | Yrd Mat Min Mat Min Exi Min Mat Fac Low Low Dat Pro Fac Ext Cet Arc Hub Fac Upp Upp War Pro Fac Res Arm Lab Res Tes Frg Active Infowar (turns) 24547 | 10 1575 151 329 . . . 355 633 2107 2317 . 342 611 1676 537 525 1109 787 1065 1373 804 1558 1432 1078 . . . 2237 1936 Optics 2 | . . . . . . . . . . . . . . . . . . . . . . . . . . . . 2 . Sensors 3405 | . . . . . . . . . . . . . . . . . . 345 . . . . 1149 1078 . . . . 833 A.S.S. 799 | . . . . . . . . . . . . . . . . . . . . . . . . . . . . . 799 IFF 5548 | . . . . . . . . . . . . . . . . . . 76 1024 1345 779 1558 766 . . . . . . Terrain 9646 | . . . . . . . . 582 1782 2095 . 319 248 . . 55 811 589 1023 1373 769 . . . . . . . . Seismic 8481 | 10 1575 151 329 . . . 355 407 1572 2308 . 340 582 31 . . 298 243 . . . . 280 . . . . . . Machine Analysis 2 | . . . . . . . . . . . . . . . . . . . . 2 . . . . . . . . . Jamming 11947 | . . . . . . . . . 21 68 . 23 206 1645 537 470 . 786 1065 1373 705 . 1213 . . . . 2235 1600 Robot Analysis Total 1 | . 1 . . . . . . . . . . . . . . . . . . . . . . . . . . . . Derelict Logs Recovered 14 | . . . . 3 . . . . 2 2 . . . . . . . . 2 2 . 3 . . . . . . . Drone Launches . | . . . . . . . . . . . . . . . . . . . . . . . . . . . . . . Drone Recoveries . | . . . . . . . . . . . . . . . . . . . . . . . . . . . . . . Exploration | -11 -10 -10 -9 -9 -9 -8 -8 -7 -7 -7 -7 -6 -6 -6 -6 -6 -6 -5 -5 -5 -5 -4 -4 -3 -3 -3 -2 -2 -2 ------------- Run | Yrd Mat Min Mat Min Exi Min Mat Fac Low Low Dat Pro Fac Ext Cet Arc Hub Fac Upp Upp War Pro Fac Res Arm Lab Res Tes Frg Turns Passed 35136 | 68 1601 151 1768 1599 205 1007 933 775 2200 2462 180 342 611 1676 537 619 1109 787 1065 1373 804 1558 1953 1501 1589 406 1442 2566 2249 Spaces Moved 15087 | 46 497 59 610 946 129 565 440 330 1058 1036 77 188 344 726 191 246 406 358 595 551 446 610 793 709 489 144 537 878 1083 Core 23 | 12 . . . . . . . . . . . . . . . . . . . . . . . . . . . . 11 Treads 13113 | . . . 462 946 129 565 440 330 1058 1036 77 188 344 726 191 246 406 358 595 551 446 610 597 594 489 144 537 878 170 Legs 1291 | 34 497 59 148 . . . . . . . . . . . . . . . . . . . 196 115 . . . . 242 Wheels . | . . . . . . . . . . . . . . . . . . . . . . . . . . . . . . Hover 660 | . . . . . . . . . . . . . . . . . . . . . . . . . . . . . 660 Flight . | . . . . . . . . . . . . . . . . . . . . . . . . . . . . . . Fastest Speed 38 | 50 120 260 160 160 160 160 160 160 160 156 236 156 156 160 160 160 160 160 160 160 160 160 160 170 167 250 247 246 38 Average Speed 172 | 101 202 260 168 160 160 160 160 160 160 160 236 156 158 160 160 160 160 160 160 160 160 162 191 176 203 250 248 247 126 Slowest Speed 340 | 120 260 260 260 160 160 160 160 160 160 240 236 156 235 160 160 240 160 160 160 160 163 163 240 250 250 250 250 250 340 Overloaded Moves . | . . . . . . . . . . . . . . . . . . . . . . . . . . . . . . Propulsion Burnouts . | . . . . . . . . . . . . . . . . . . . . . . . . . . . . . . Robots Hopped . | . . . . . . . . . . . . . . . . . . . . . . . . . . . . . . Potential Cave-ins 11 | . . . . . . . . . . . . . . . . . . . . . . 2 . 2 . . 1 3 3 Cave-ins Triggered 1 | . . . . . . . . . . . . . . . . . . . . . 1 . . . . . . . . Teleports 9 | . . . . . . . . . . . . . . . . . . . . . . . . . . . . . 9 Exploration Rate (%) 56 | 4 92 17 64 100 48 98 34 15 88 87 68 38 15 87 56 94 35 14 83 68 74 77 22 30 48 82 29 90 31 Regions Visited 29 Branch Regions 20 Pre-discovered Areas 9 | . 2 . 3 2 . . . . . . 1 . . . . . . . 1 . . . . . . . . . . Known Exits Taken 12 | . . 1 1 1 . 1 1 1 1 . . . 1 . . . . 1 . . . 1 1 1 . . . . . Unknown Exits Taken 17 | 1 1 . . . 1 . . . . 1 1 1 . 1 1 1 1 . 1 1 1 . . . 1 1 1 1 . Scrap Searched 22 | . . . . 3 . 1 . . 2 5 . . . . . . . . 4 4 . 3 . . . . . . . Spaces Dug 209 | . . . . . . . 11 . . 3 . 5 1 . . . 1 4 5 3 4 28 43 23 10 . . 45 23 Terrain Destroyed 1311 | . 2 . . . . . 11 . . 101 . 8 1 16 2 8 151 31 75 16 4 195 287 45 94 1 84 74 105 Melee . | . . . . . . . . . . . . . . . . . . . . . . . . . . . . . . Projectile 389 | . . . . . . . . . . 3 . 8 1 16 2 8 5 13 20 8 4 35 34 45 83 1 10 36 57 AOE 922 | . 2 . . . . . 11 . . 98 . . . . . . 146 18 55 8 . 160 253 . 11 . 74 38 48 Terrain Rammed . | . . . . . . . . . . . . . . . . . . . . . . . . . . . . . . Walls Destroyed . | . . . . . . . . . . . . . . . . . . . . . . . . . . . . . . Machines Disabled . | . . . . . . . . . . . . . . . . . . . . . . . . . . . . . . Actions | -11 -10 -10 -9 -9 -9 -8 -8 -7 -7 -7 -7 -6 -6 -6 -6 -6 -6 -5 -5 -5 -5 -4 -4 -3 -3 -3 -2 -2 -2 --------- Run | Yrd Mat Min Mat Min Exi Min Mat Fac Low Low Dat Pro Fac Ext Cet Arc Hub Fac Upp Upp War Pro Fac Res Arm Lab Res Tes Frg Total 22346 | 59 1013 58 1220 988 128 612 586 504 1539 1755 76 222 387 1132 390 412 822 512 655 1024 511 1060 1126 904 871 182 615 1211 1772 Wait 4455 | . 450 . 473 21 . 12 50 75 397 618 . 17 11 145 156 113 378 80 12 448 7 277 144 33 84 4 8 200 242 Move 15059 | 45 496 58 609 945 128 564 439 329 1057 1035 76 187 343 725 190 245 405 357 594 550 446 609 792 708 488 143 536 877 1083 Hop . | . . . . . . . . . . . . . . . . . . . . . . . . . . . . . . Pick Up 255 | 5 15 . 15 . . 3 10 7 16 4 . . 3 6 7 6 3 6 4 1 6 10 22 20 21 9 8 6 42 Fast Attach 180 | 7 1 . 6 . . . 4 6 6 3 . . 2 3 3 2 . 3 2 2 10 6 20 16 19 . 7 11 41 Attach 144 | . . . 4 . . 2 3 3 3 5 . . 5 2 2 4 . 5 . . 2 16 18 3 21 4 4 3 35 Detach 49 | . . . . . . . . . . . . . . . . 1 . . . . . 8 8 . 11 1 . 1 19 Swap 255 | . 6 . 15 . . . 13 14 12 29 . 6 9 10 3 2 7 9 8 5 5 7 7 11 19 3 5 23 27 Drop 322 | . 4 . 28 . . . 15 11 23 2 . . 2 14 11 7 5 13 6 3 20 3 10 33 24 7 12 19 50 Fire 1373 | 2 37 . 70 22 . 27 49 57 25 59 . 12 12 57 18 32 22 36 29 15 14 108 104 79 182 11 35 69 190 Melee 7 | . . . . . . . . . . . . . . . . . . . . . . 1 . . . . . . 6 Ram 1 | . . . . . . . . . . . . . . . . . . . . . . . . . . . . . 1 Kick 4 | . 4 . . . . . . . . . . . . . . . . . . . . . . . . . . . . Crush 20 | . . . . . . 4 3 2 . . . . . 3 . . 2 3 . . 1 . 1 1 . . . . . Escape Stasis 38 | . . . . . . . . . . . . . . . . . . . . . . . . . 2 . . . 36 Rewire 184 | . . . . . . . . . . . . . . 167 . . . . . . . 15 . . . . . 2 . Trap . | . . . . . . . . . . . . . . . . . . . . . . . . . . . . . . Miscellaneous . | . . . . . . . . . . . . . . . . . . . . . . . . . . . . . . Route ------- -11/Scrapyard -10/Materials (discovered 6 exits: *Mat x3 / [*Min x2] / Sub) -10/Mines (discovered 3 exits: *Mat x2 / Sub) -9/Materials (discovered 7 exits: *Mat x3 / *Min x2 / [*Sto x2]) -9/Mines (discovered 3 exits: *Mat x2 / *Exi) -9/Exiles -8/Mines (discovered 2 exits: *Mat x2) -8/Materials (discovered 3 exits: *Fac x3) -7/Factory (discovered 3 exits: *Fac / *Low x2) -7/Lower Caves -7/Lower Caves (discovered 2 exits: *Fac / *Dat) -7/Data Miner -6/Proximity Caves -6/Factory -6/Extension (discovered 2 exits: *Fac / *Cet) -6/Cetus (discovered 2 exits: *Fac / [*Arc]) -6/Archives (discovered 3 exits: *Fac / *Hub x2) -6/Hub_04(d) (discovered 2 exits: *Fac x2) -5/Factory (discovered 3 exits: Fac / *Upp x2) -5/Upper Caves -5/Upper Caves (discovered 2 exits: *Fac / *War) -5/Warlord -4/Proximity Caves -4/Factory (discovered 3 exits: *Res x2 / Upp) -3/Research (discovered 4 exits: *Res / *Arm / *Qua x2) -3/Armory (discovered 2 exits: *Res / [*Lab]) -3/Lab -2/Research -2/Testing (discovered 2 exits: [*Sec] / *Frg) -2/Protoforge (discovered 1 exit: [*Acc]) History --------- Turn | Location | Event 5 | -11/Scrapyard | Discovered new exit (range 13) 69 | -11/Scrapyard | Entered Materials 187 | -10/Materials | Discovered new exit (range 15) 303 | -10/Materials | Discovered new exit (range 8) 308 | -10/Materials | Build established: Mutant 367 | -10/Materials | Discovered new exit (range 16) 465 | -10/Materials | Central database locked down 583 | -10/Materials | Discovered new exit (range 11) 996 | -10/Materials | Learned location of 2 exits from Mines 1053 | -10/Materials | Learned location of 2 exits from Mines 1100 | -10/Materials | Learned Storage stockpile data 1135 | -10/Materials | Identified exit to Subcaves 1162 | -10/Materials | Learned location of 1 exit from Recycling 1186 | -10/Materials | Identified exit to Materials 1201 | -10/Materials | Learned 2 Storage zone layouts 1225 | -10/Materials | Learned 2 Storage zone layouts 1259 | -10/Materials | Learned Storage trap positions 1305 | -10/Materials | Learned 4 Recycling zone layouts 1651 | -10/Materials | Repaired Seismic Detector 1670 | -10/Materials | Entered Mines 1721 | -10/Mines | Met a Derelict bent on vengeance 1801 | -10/Mines | Assembled infested the area 1806 | -10/Mines | Assisted by a Guerilla fighting off Assembled 1821 | -10/Mines | Entered Materials 1821 | -9/Materials | Evolved 2 slots: Propulsion x1, Utility x1 1822 | -9/Materials | Identified exit to Mines 2036 | -9/Materials | Discovered new exit (range 12) 2246 | -9/Materials | Build established: Scavenger-Mutant 2377 | -9/Materials | Discovered new exit (range 16) 2687 | -9/Materials | Discovered new exit (range 4) 3031 | -9/Materials | Identified exit to Materials 3166 | -9/Materials | Learned location of 1 exit from Materials 3218 | -9/Materials | Learned location of Mines (-8) 3260 | -9/Materials | Learned location of Zion (-6) 3294 | -9/Materials | Learned location of 2 exits from Materials 3589 | -9/Materials | Entered Mines 3591 | -9/Mines | Identified exit to Exiles 3730 | -9/Mines | Assisted by bots powering up and referring to "LRC-V3" 4223 | -9/Mines | Learned location of Storage (-9) 4366 | -9/Mines | Learned Materials security intel 5180 | -9/Mines | Deemed a non-threat by the Exiles lab entrance 5188 | -9/Mines | Entered Exiles 5188 | -9/Exiles | Accompanied by 3 allies 5228 | -9/Exiles | Met 8R-AWN 5256 | -9/Exiles | Met EX-HEX 5316 | -9/Exiles | Met EX-DEC 5379 | -9/Exiles | Discovered new exit (range 10) 5393 | -9/Exiles | Entered Mines 5393 | -8/Mines | Accompanied by 3 allies 5426 | -8/Mines | Lost 3 allies 6400 | -8/Mines | Entered Materials 6400 | -8/Materials | Evolved 2 slots: Propulsion x1, Utility x1 6401 | -8/Materials | Identified exit to Factory 7333 | -8/Materials | Entered Factory 7333 | -7/Factory | Evolved 2 slots: Utility x2 7432 | -7/Factory | Discovered new exit (range 11) 7462 | -7/Factory | Identified exit to Lower Caves 7868 | -7/Factory | Destroyed 7 combat bots 8108 | -7/Factory | Entered Lower Caves 8162 | -7/Lower Caves | Identified exit to Lower Caves 8288 | -7/Lower Caves | Encountered a Warlord checkpoint 8468 | -7/Lower Caves | Learned Factory trap positions 8937 | -7/Lower Caves | Found Imp. Powered Armor 9351 | -7/Lower Caves | Found DCF Scrap (12 items) 9441 | -7/Lower Caves | Attracted the attention of an 0b10 checkpoint 10308 | -7/Lower Caves | Entered another Lower Caves area 10334 | -7/Lower Caves | Discovered new exit (range 23) 10934 | -7/Lower Caves | Attacked by a faux Warlord 11512 | -7/Lower Caves | Attracted the attention of an 0b10 base 11561 | -7/Lower Caves | Lost 3 parts (1n1u1w) 12134 | -7/Lower Caves | Learned Factory garrison access intel 12586 | -7/Lower Caves | Attracted the attention of an 0b10 checkpoint 12638 | -7/Lower Caves | Discovered new exit (range 13) 12770 | -7/Lower Caves | Entered Data Miner 12770 | -7/Data Miner | Discovered new exit (range 6) 12815 | -7/Data Miner | Met Data Miner 12860 | -7/Data Miner | Learned location of Section 7 (-2) 12860 | -7/Data Miner | Acquired the access code to Warlord's prototype stash 12896 | -7/Data Miner | Received God Mode back door access code from Data Miner 12950 | -7/Data Miner | Entered Proximity Caves 13110 | -6/Proximity Caves | Learned Factory security intel 13110 | -6/Proximity Caves | Learned 6 Upper Caves zone layouts 13188 | -6/Proximity Caves | Discovered new exit (range 19) 13292 | -6/Proximity Caves | Entered Factory 13292 | -6/Factory | Evolved 2 slots: Power x1, Utility x1 13293 | -6/Factory | Identified exit to Extension 13294 | -6/Factory | Loaded intel: 116 trap records 13296 | -6/Factory | Loaded intel: 4 garrison access locations 13417 | -6/Factory | Spotted B-75 Beast 13443 | -6/Factory | Incoming assault squad redirected 13452 | -6/Factory | Incoming assault squad redirected 13597 | -6/Factory | Lost 4 parts (3n1w) 13903 | -6/Factory | Entered Extension 14047 | -6/Extension | Rescued A7 14217 | -6/Extension | Rescued a captive Derelict 14217 | -6/Extension | Rescued a captive Derelict 14251 | -6/Extension | Rescued a captive Derelict 14251 | -6/Extension | Rescued a captive Derelict 14805 | -6/Extension | Spotted B-75 Beast 14814 | -6/Extension | Build established: Commander-Mutant 14816 | -6/Extension | Allies destroyed B-75 Beast 14856 | -6/Extension | Lost 3 allies 14864 | -6/Extension | Spotted B-75 Beast 14873 | -6/Extension | Destroyed B-75 Beast 14905 | -6/Extension | Lost 3 allies 14978 | -6/Extension | Disrupted transfer network 15087 | -6/Extension | Discovered new exit (range 15) 15089 | -6/Extension | Discovered new exit (range 15) 15174 | -6/Extension | Lost 3 allies 15200 | -6/Extension | Rescued a captive Derelict 15303 | -6/Extension | First assault squad dispatched 15325 | -6/Extension | Rescued a captive Derelict 15410 | -6/Extension | Lost 3 allies 15467 | -6/Extension | Lost 4 allies 15579 | -6/Extension | Entered Cetus 15579 | -6/Cetus | Accompanied by 10 allies (A7) 15584 | -6/Cetus | Acquired a Cetus Manufacturing Module code from A7 15610 | -6/Cetus | Spotted Cetus Guard 15610 | -6/Cetus | Spotted Cetus Guard 15611 | -6/Cetus | Spotted Cetus Guard 15613 | -6/Cetus | Spotted Cetus Guard 15614 | -6/Cetus | Allies destroyed Cetus Guard 15624 | -6/Cetus | Allies destroyed Cetus Guard 15632 | -6/Cetus | Destroyed Cetus Guard 15638 | -6/Cetus | Destroyed Cetus Guard 15662 | -6/Cetus | Lost 5 allies 15711 | -6/Cetus | Build established: Scavenger-Mutant 15736 | -6/Cetus | Started Cetus Manufacturing Module 15761 | -6/Cetus | Manufactured an Enhanced Grunt 15786 | -6/Cetus | Manufactured an Enhanced Grunt 15811 | -6/Cetus | Manufactured an Enhanced Grunt 15836 | -6/Cetus | Manufactured an Enhanced Grunt 15861 | -6/Cetus | Manufactured an Enhanced Grunt 15877 | -6/Cetus | Discovered new exit (range 15) 15922 | -6/Cetus | Spotted Cetus Guard 15923 | -6/Cetus | Spotted Cetus Guard 15928 | -6/Cetus | Spotted Cetus Guard 15934 | -6/Cetus | Allies destroyed Cetus Guard 15935 | -6/Cetus | Spotted Cetus Guard 15936 | -6/Cetus | Destroyed Cetus Guard 15942 | -6/Cetus | Allies destroyed Cetus Guard 15943 | -6/Cetus | Destroyed Cetus Guard 15956 | -6/Cetus | Discovered new exit (range 16) 15965 | -6/Cetus | Met Revision 17 16091 | -6/Cetus | Murdered A7 16094 | -6/Cetus | Extracted ID and sensor layout for unrecognized location from A7's data core 16116 | -6/Cetus | Entered Archives 16116 | -6/Archives | Accompanied by 9 allies 16182 | -6/Archives | Lost 3 allies 16186 | -6/Archives | Discovered new exit (range 14) 16331 | -6/Archives | Discovered new exit (range 15) 16538 | -6/Archives | Discovered new exit (range 13) 16735 | -6/Archives | Entered Hub_04(d) 16735 | -6/Hub_04(d) | Accompanied by 6 allies 16834 | -6/Hub_04(d) | Discovered new exit (range 24) 17123 | -6/Hub_04(d) | Discovered new exit (range 22) 17352 | -6/Hub_04(d) | Incoming investigation squad redirected 17499 | -6/Hub_04(d) | Network Hub disabled 17743 | -6/Hub_04(d) | Network Hub disabled 17785 | -6/Hub_04(d) | First assault squad dispatched 17842 | -6/Hub_04(d) | System corruption reached 10% 17844 | -6/Hub_04(d) | Entered Factory 17844 | -5/Factory | Accompanied by 1 ally 17844 | -5/Factory | Evolved 2 slots: Utility x2 18007 | -5/Factory | Identified exit to Upper Caves 18232 | -5/Factory | Discovered new exit (range 24) 18390 | -5/Factory | Build established: Skirmisher 18631 | -5/Factory | Entered Upper Caves 18979 | -5/Upper Caves | Build established: Scavenger-Skirmisher 19301 | -5/Upper Caves | Destroyed 8 combat bots 19381 | -5/Upper Caves | Found DCF Scrap (13 items) 19593 | -5/Upper Caves | Discovered new exit (range 15) 19696 | -5/Upper Caves | Entered another Upper Caves area 19729 | -5/Upper Caves | Learned 4 Factory zone layouts 19762 | -5/Upper Caves | Discovered new exit (range 22) 20311 | -5/Upper Caves | Learned 8 Factory zone layouts 20935 | -5/Upper Caves | Attracted the attention of an 0b10 checkpoint 21047 | -5/Upper Caves | Discovered new exit (range 10) 21069 | -5/Upper Caves | Entered Warlord 21102 | -5/Warlord | Discovered new exit (range 21) 21122 | -5/Warlord | System corruption cleaned by Quarantine Array 21359 | -5/Warlord | Visited the Vortex Lab 21362 | -5/Warlord | Warlord's base attacked by MAIN.C 21371 | -5/Warlord | Found Prototype Energy Cannon 21371 | -5/Warlord | Identified Vortex Driver 21380 | -5/Warlord | Found Vortex Driver 21525 | -5/Warlord | Opened Warlord's prototype stash 21530 | -5/Warlord | Found Prototype Reactor 21549 | -5/Warlord | Found Prototype Processor 21549 | -5/Warlord | Identified Exp. Core Analyzer 21557 | -5/Warlord | Found Prototype Processor 21557 | -5/Warlord | Identified Exp. Targeting Computer 21572 | -5/Warlord | Found Prototype Hackware 21647 | -5/Warlord | Met Warlord 21712 | -5/Warlord | Warlord forces counterattacked 21719 | -5/Warlord | Spotted B-75 Beast 21731 | -5/Warlord | Spotted B-86 Titan 21777 | -5/Warlord | Lost 9 allies 21796 | -5/Warlord | Spotted Striker 21831 | -5/Warlord | Lost 5 allies 21832 | -5/Warlord | Spotted Striker 21846 | -5/Warlord | Crushed by falling debris 21864 | -5/Warlord | Spotted Striker 21864 | -5/Warlord | Spotted Striker 21864 | -5/Warlord | Spotted Executioner 21873 | -5/Warlord | Entered Proximity Caves 21890 | -4/Proximity Caves | Lost 16 allies 21903 | -4/Proximity Caves | Lost 3 parts (2u1w) 22144 | -4/Proximity Caves | Build established: Scavenger-Mutant 22242 | -4/Proximity Caves | Ambushed by research squad 22389 | -4/Proximity Caves | Learned Research stockpile data 22512 | -4/Proximity Caves | Learned Research terminal intel 22556 | -4/Proximity Caves | Identified exit to Factory 22854 | -4/Proximity Caves | Lost 5 allies 22912 | -4/Proximity Caves | Lost 6 parts (2n3u1w) 23248 | -4/Proximity Caves | Found Prototype Launcher 23248 | -4/Proximity Caves | Identified Gui. Missile Launcher 23262 | -4/Proximity Caves | Found Prototype Launcher 23262 | -4/Proximity Caves | Identified Tesla Bomb Launcher 23292 | -4/Proximity Caves | Found Tesla Bomb Launcher 23297 | -4/Proximity Caves | Found Tesla Bomb Launcher 23419 | -4/Proximity Caves | System corruption reached 10% 23431 | -4/Proximity Caves | Entered Factory 23431 | -4/Factory | Accompanied by 2 allies 23431 | -4/Factory | Evolved 2 slots: Power x1, Utility x1 23432 | -4/Factory | Identified exit to Upper Caves 23432 | -4/Factory | Identified exit to Research 23435 | -4/Factory | Identified Vortex Chain Reactor 24005 | -4/Factory | Build established: Scavenger-Skirmisher 24231 | -4/Factory | Lost 3 parts (1p2u) 24433 | -4/Factory | System corruption reached 10% 24490 | -4/Factory | Build established: Scavenger-Mutant 24564 | -4/Factory | Found Quantum Capacitor 24665 | -4/Factory | Lost 5 parts (1p1n1u2w) 24690 | -4/Factory | Discovered exit to Research (range 9) 24912 | -4/Factory | Build established: Mutant 25204 | -4/Factory | Fabricated Imp. Powered Armor? 25352 | -4/Factory | System corruption reached 30% 25384 | -4/Factory | Entered Research 25384 | -3/Research | Evolved 2 slots: Propulsion x2 25385 | -3/Research | Identified exit to Armory 25387 | -3/Research | Loaded intel: 24 terminal locations 25584 | -3/Research | Revision forces began assault on 0b10 25618 | -3/Research | Met up with Revision 17++ 25853 | -3/Research | Identified exit to Quarantine 25866 | -3/Research | Allied Derelicts emerged from ambush trap array 25982 | -3/Research | Lost 6 allies 26084 | -3/Research | Research terminal network offline 26123 | -3/Research | Build established: Scavenger-Mutant 26233 | -3/Research | Discovered new exit (range 15) 26468 | -3/Research | Spotted Striker 26478 | -3/Research | Destroyed Striker 26506 | -3/Research | Lost 4 allies 26608 | -3/Research | Found Fusion Bomb Launcher 26667 | -3/Research | Spotted Executioner 26827 | -3/Research | Found Exp. Core Analyzer 26885 | -3/Research | Entered Armory 26904 | -3/Armory | Build established: Mutant 27030 | -3/Armory | Found Prototype Launcher 27030 | -3/Armory | Identified Com. Tesla Bomb Launcher 27035 | -3/Armory | Found Prototype Launcher 27035 | -3/Armory | Identified Tactical Quantum Warhead 27040 | -3/Armory | Found Com. Tesla Bomb Launcher 27172 | -3/Armory | System corruption reached 10% 27371 | -3/Armory | Incoming investigation squad redirected 27444 | -3/Armory | Destroyed 9 combat bots 27647 | -3/Armory | System corruption reached 30% 27990 | -3/Armory | Spotted Armor Guard 27990 | -3/Armory | Spotted Armor Guard 28030 | -3/Armory | Destroyed Armor Guard 28032 | -3/Armory | Destroyed Armor Guard 28051 | -3/Armory | Lost 3 parts (1p1n1u) 28073 | -3/Armory | Found Corrupted Prototype Device 28090 | -3/Armory | Found Superdense Plating 28091 | -3/Armory | Build established: Scavenger-Mutant 28252 | -3/Armory | Discovered new exit (range 7) 28345 | -3/Armory | Lost 3 parts (2p1u) 28359 | -3/Armory | Destroyed 7 combat bots 28385 | -3/Armory | First assault squad dispatched 28412 | -3/Armory | Discovered new exit (range 5) 28445 | -3/Armory | Found Prototype Device 28445 | -3/Armory | Identified Imp. Particle Accelerator 28449 | -3/Armory | Found Imp. Particle Accelerator 28453 | -3/Armory | Found Imp. Particle Accelerator 28474 | -3/Armory | Entered Lab 28477 | -3/Lab | Discovered new exit (range 9) 28505 | -3/Lab | Hidden lab's door opened automatically 28505 | -3/Lab | Sensor layout match revealed 28506 | -3/Lab | Gained access to the hidden lab's interior 28594 | -3/Lab | Found Alien Artifact 28608 | -3/Lab | Found Alien Artifact 28629 | -3/Lab | Found Alien Artifact 28701 | -3/Lab | Found Prototype Hackware 28707 | -3/Lab | Found Prototype Protection 28783 | -3/Lab | Found Alien Artifact 28837 | -3/Lab | Identified Core Regenerator 28837 | -3/Lab | Used Core Regenerator, restored core integrity (+325) 28838 | -3/Lab | Identified Integrated Mediator 28838 | -3/Lab | Installed Integrated Mediator, increased core attachment efficiency 28840 | -3/Lab | Identified Hvy. Regenerative Plating 28878 | -3/Lab | Identified Exp. Weapon Cycler 28880 | -3/Lab | Entered Research 28880 | -2/Research | Warlord forces began assault on 0b10 28880 | -2/Research | Evolved 2 slots: Power x1, Utility x1 28990 | -2/Research | Research machine network offline 29440 | -2/Research | Spotted Striker 29452 | -2/Research | Destroyed Striker 29454 | -2/Research | Borebot progress halted 29481 | -2/Research | Lost 5 allies 29558 | -2/Research | Borebot progress halted 29568 | -2/Research | Build established: Generator-Mutant 29816 | -2/Research | Borebot progress halted 30015 | -2/Research | Spotted Striker 30234 | -2/Research | Discovered new exit (range 13) 30241 | -2/Research | Spotted Striker 30282 | -2/Research | Found Prototype Processor 30282 | -2/Research | Identified Exp. Targeting Computer 30283 | -2/Research | Lost 3 allies 30322 | -2/Research | Entered Testing 30723 | -2/Testing | Found Prototype Device 30723 | -2/Testing | Identified Exp. Transmission Jammer 30787 | -2/Testing | Found Prototype Launcher 30787 | -2/Testing | Identified Z-bomb Delivery System 30933 | -2/Testing | Found Prototype Hackware 31022 | -2/Testing | Identified System Mapper (x2) 31024 | -2/Testing | Discovered new exit (range 12) 31248 | -2/Testing | Rewired PY-UU8PGZTTUE 31490 | -2/Testing | Spotted Striker 31490 | -2/Testing | Spotted Striker 31818 | -2/Testing | System corruption reached 10% 32519 | -2/Testing | Spotted Fortress 32687 | -2/Testing | Discovered new exit (range 6) 32687 | -2/Testing | Discovered new exit (range 7) 32714 | -2/Testing | Identified Core Reset Matrix 32714 | -2/Testing | Identified Transdimensional Reconstructor 32714 | -2/Testing | Used Core Reset Matrix 32888 | -2/Testing | Entered Protoforge 32889 | -2/Protoforge | Sensed 2 artifacts in vicinity 33226 | -2/Protoforge | Superfortress began startup sequence 33419 | -2/Protoforge | Spotted Hotshot 33431 | -2/Protoforge | Spotted Hotshot 33432 | -2/Protoforge | Spotted Hotshot 33433 | -2/Protoforge | Destroyed Hotshot 33434 | -2/Protoforge | Spotted Hotshot 33435 | -2/Protoforge | Lost 4 parts (1p2n1u) 33442 | -2/Protoforge | Destroyed Hotshot 33447 | -2/Protoforge | Destroyed Hotshot 33451 | -2/Protoforge | Destroyed Hotshot 33452 | -2/Protoforge | Spotted Hotshot 33455 | -2/Protoforge | Spotted Hotshot 33461 | -2/Protoforge | Spotted Hotshot 33461 | -2/Protoforge | Spotted Hotshot 33463 | -2/Protoforge | Destroyed Hotshot 33469 | -2/Protoforge | Destroyed Hotshot 33479 | -2/Protoforge | Destroyed Hotshot 33482 | -2/Protoforge | Destroyed Hotshot 33503 | -2/Protoforge | Destroyed 10 combat bots 33554 | -2/Protoforge | Discovered new exit (range 16) 33776 | -2/Protoforge | Additional patrols dispatched to research labs 33804 | -2/Protoforge | Spotted Immortal 33804 | -2/Protoforge | Spotted Immortal 33817 | -2/Protoforge | Found Prototype Device 33827 | -2/Protoforge | Found Prototype Hackware 33835 | -2/Protoforge | Found Prototype Hackware 33880 | -2/Protoforge | Spotted Decapitator 33880 | -2/Protoforge | Spotted Decapitator 33880 | -2/Protoforge | Spotted Decapitator 33880 | -2/Protoforge | Spotted Decapitator 33891 | -2/Protoforge | Build established: Scavenger-Mutant 33931 | -2/Protoforge | Destroyed Immortal 33937 | -2/Protoforge | Destroyed Immortal 33983 | -2/Protoforge | Identified Cep. Network Penetrator (x2) 34008 | -2/Protoforge | Found Prototype Device 34008 | -2/Protoforge | Identified Crosscalibrator 34012 | -2/Protoforge | Identified Exp. Active Sensor Suite 34046 | -2/Protoforge | Found Cep. Weapon Articulator 34122 | -2/Protoforge | Spotted V070-z 34141 | -2/Protoforge | Garrison activated, responded to threat 34149 | -2/Protoforge | Destroyed V070-z 34190 | -2/Protoforge | Found Prototype Device 34190 | -2/Protoforge | Identified Exp. Actuator Array 34206 | -2/Protoforge | Lost 4 parts (2n1u1w) 34212 | -2/Protoforge | Found Unknown Device 34212 | -2/Protoforge | Identified Adv. Force Booster 34261 | -2/Protoforge | Forge Plexus network access discovered 34277 | -2/Protoforge | Incoming assault squad redirected 34325 | -2/Protoforge | Found Cep. Gyrokinetic System 34335 | -2/Protoforge | Spotted V231-d 34335 | -2/Protoforge | Spotted V971-i 34335 | -2/Protoforge | Spotted V093-g 34342 | -2/Protoforge | Build established: Scavenger-Skirmisher 34351 | -2/Protoforge | Found Cep. Combat Aerolev Unit 34354 | -2/Protoforge | Found Corrupted Cep. Combat Aerolev Unit 34355 | -2/Protoforge | Warped through subspace 34362 | -2/Protoforge | Incoming investigation squad redirected 34509 | -2/Protoforge | Spotted Decapitator 34509 | -2/Protoforge | Spotted Decapitator 34509 | -2/Protoforge | Spotted Decapitator 34525 | -2/Protoforge | Destroyed Decapitator 34530 | -2/Protoforge | Destroyed Decapitator 34574 | -2/Protoforge | Scanned by Researcher 34585 | -2/Protoforge | Found Cep. Antigrav Storage Unit 34590 | -2/Protoforge | Found Cep. NT7 Matterbank 34592 | -2/Protoforge | Found Cep. Chromion Battery 34614 | -2/Protoforge | Incoming investigation squad redirected 34638 | -2/Protoforge | First assault squad dispatched 34669 | -2/Protoforge | Spotted V501-q 34669 | -2/Protoforge | Spotted V469-u 34671 | -2/Protoforge | Spotted Immortal 34672 | -2/Protoforge | Spotted Immortal 34674 | -2/Protoforge | Spotted V886-z 34713 | -2/Protoforge | System corruption reached 30% 34749 | -2/Protoforge | Core integrity fell below 50% 34752 | -2/Protoforge | Lost 5 parts (1p3u1w) 34772 | -2/Protoforge | Destroyed V501-q 34788 | -2/Protoforge | Destroyed V886-z 34802 | -2/Protoforge | Found Transdimensional Reconstructor 34812 | -2/Protoforge | Found Exp. Actuator Array 34819 | -2/Protoforge | Found Cep. Core Shell 34827 | -2/Protoforge | Found Cep. Navigation Harness 34829 | -2/Protoforge | Lost 7 parts (1p4n1u1w) 34858 | -2/Protoforge | Spotted AP7-3 34858 | -2/Protoforge | Spotted AP7-3 34862 | -2/Protoforge | Found Prototype Device 34862 | -2/Protoforge | Identified Cep. Recoil Nullifier 34866 | -2/Protoforge | Found Cep. Networked Targeting System 34910 | -2/Protoforge | Incoming assault squad redirected 34915 | -2/Protoforge | Incoming assault squad redirected 34923 | -2/Protoforge | Build established: Scout 35013 | -2/Protoforge | Core integrity fell below 20% 35029 | -2/Protoforge | Found Cep. Thermoelectric Network 35030 | -2/Protoforge | Found Faulty Cep. Cloak Mesh 35032 | -2/Protoforge | Found Cld. Directed Potential Cannon 35033 | -2/Protoforge | Found Cep. Dimensional Manipulator 35034 | -2/Protoforge | Lost 6 parts (1p2n3u) 35035 | -2/Protoforge | Found Cep. Core Analysis Suite 35037 | -2/Protoforge | Found Faulty Cld. Directed Potential Cannon 35040 | -2/Protoforge | Found Cep. Thermoelectric Network 35041 | -2/Protoforge | Found Cep. Dimensional Manipulator 35044 | -2/Protoforge | Found Cep. Blasthammer 35046 | -2/Protoforge | Found Cep. Cloak Mesh 35099 | -2/Protoforge | Incoming assault squad redirected 35137 | -2/Protoforge | Destroyed by G-73 Enforcer with Heavy Laser Last Messages --------------- 35123_ Machine disabled. 35123_ Destroyed Unknown Storage. 35123_ Destroyed Imp. Antigrav System. 35123_ P-80 Master system corrupted by crushing effect. 35123_ P-80 Master knocked back. 35125_ P-80 Master misfires. 35127_ Dropped Imp. Energy Well. 35128_ Extracted 84 energy. 35129_ Extracted 19 energy. 35131_ System corrupted: Energy discharge (-39). 35131_ Extracted 39 energy. 35131_ P-80 Master IFF system glitched. 35131_ Destroyed Unknown Storage. 35131_ P-80 Master system corrupted by crushing effect. 35131_ P-80 Master destroyed. 35132_ Extracted 19 energy. 35133_ Acquired Imp. Energy Well. 35136_ M-36 Artificer repairs G-73 Enforcer. Map ----- +----------------------------------------------------+ | | | | | | | | | | | | | | | | | | | | | | | | | ?????????????????????????????????????????????????? | | ?????????????????????????????????????????????????? | | ?????????????????????????????????????????????????? | | ?????????????????????????????????????????????????? | | ?????????????????????????????????????????????????? | | ???????????????????############??????????????????? | | ???????????????????#"""""#""""#??????????????????? | | ????????????????!!?" " " "!! "#??????????????????? | | ????????????????!!?" " !!"#?????????????????## | | ????????????????!!!" " #?????????????????#" | | ??????????????##"""" """ ##?????????????????#" | | ############### #################### | | ^ ^ | | @ gm ^ | | ] n ^ | | ############### #################### | | ??????????????##""""% """%##?????????????????#" | | ?????????????????!?" "!! "#?????????????????#" | | ?????????????????!?" "!!!"#?????????????????## | | ??????????????????!" "!!!"#??????????????????? | | ???????????????????# #""""#??????????????????? | | ???????????????????## #######??????????????????? | | ????????????????????# #????????????????????????? | | ????????????????????# #????????????????????????? | | ????????????????????# #????????????????????????? | | ????????????????????# #????????????????????????? | | ????????????????????# #????????????????????????? | | ????????????????????# #????????????????????????? | | ????????????????????# #????????????????????????? | | ????????????????????# ####################?????? | | ????????????????????# ##????? | | ????????????????????# ^ #????? | | ????????????????????# #????? | | ????????????????????## ################ ##????? | | ?????????????????????####??????????????# #?????? | | ???????????????????????????????????????# #?????? | | ???????????????????????????????????????# #?????? | | ???????????????????????????????????????# #?????? | +----------------------------------------------------+ Best States ------------- Heat Dissipation 201 Coolant Potential 100 Energy Generation 85 Energy Capacity 1790 Matter Stores 465 Matter Capacity 800 Sight Range 16 Robot Scan Range 20 Terrain Scan Range 24 Terrain Scan Density 310 Jamming Range 22 Additional Mass Support 30 Armor Coverage 3200 Resistance: KI 25 Resistance: TH 20 Resistance: EX 25 Core Shielding 90 Weapon Cycling 30 Melee Speed Boost 20 Evasion (%) 71 Targeting Accuracy 42 Core Analysis 11 Recoil Reduction 6 Particle Charging 40 Offensive Hacking 20 Item Schematics ----------------- None Robot Schematics ------------------ None Fabricated ------------ Imp. Powered Armor | x1 | -4/Factory Repaired ---------- Seismic Detector | 40% | -10/Materials Alien Tech Used ----------------- Core Regenerator Integrated Mediator Core Reset Matrix Transdimensional Reconstructor Achievements -------------- Perfect Aim Challenges ------------ None Game ------ Seed TargetingMomentumShearcannon Manual? 0 Play Time 05:13:04 Cumulative 290.7 hours Start 2025.08.04 @ 18:59:55 End 2025.08.23 @ 19:05:59 Sessions 7 Manual Loads 0 Difficulty Rogue Special Mode None Game No. 205 Rogue 205 Adventurer 0 Explorer 0 Win Type - Total 17 Types 8/0/5/1/1/0/0/1/0/1 Lore% 78 Gallery% 76 Achievement% 76 Wizard Run 0 Options --------- Layout 1 ASCII 0 Keyboard 0 Movement Mouse Keybinds 0 Fullscreen 2 Font 24/Smallcaps Map View 50x35 Zoom Use 0% Tactical HUD 1 Map Filters NONE Filters NONE Steam 1 RUN: 10ff159e-6996-4089-af60-588d61f1ddcf